Workbook

Sheet Cover Page
N2: Version 24.2a (for incinerators) - 27/11/24
N4: Note that there is another version of this template available for co-incinerators
B8: Add photo
N13: Notes:
N14: This template may require adjustments by individual operators to meet specific reporting requirements as defined in the site Permit(s)
B29: Annual Performance Report 2024
B31: Permit EPR/RP3004MA v005
B33: Newhurst Energy Recovery Facility
B37: Encyclis Ltd
B39: Year: | C39: 2024
B41: Address: | C41: Ashby Road, Leicestershire, LE12 9BU
B43: Tel:
B45: Email: | C45: kathryn.goldacre@encyclis.com
B47: Prepared by: | C47: Kathryn Goldacre | F47: Position: | G47: Health, Safety & Environmental Manager
B49: Approved by: | C49: Jim Thompson | F49: Position: | G49: Plant Manager
B51: Version: | C51: 2
B53: Issue Date: | C53: 2025-01-29

Sheet Facility Info
A1: =+'Cover Page'!$B$29 -> Annual Performance Report 2024 | E1: =+'Cover Page'!$B$33 -> Newhurst Energy Recovery Facility
A3: Plant Description and Design | K3: Notes:
A5: Newhurst Energy Recovery Facility (ERF) is located at junction 23 of the M1 near Shepshed in Leicestershire at an approximate National Grid Reference (NGR) of SK 489 181, around 5km from the centre of Loughborough. The environmental setting to the site can be classed as ‘semi-urban’, with the A512 Ashby Road running to the north, northwest and northeast, beyond which lies Shepshed town at a distance of approximately 500m. Open space and agricultural land lies predominantly to the west and south of the site. The facility treats up to 455000 tonnes of non-recyclable waste from the local area and further afield. In December 2023 a variation of the permit was granted to increase the amount of waste which can be processed to 455000 tonnes allowing for outages at up to 18 months spacing and reduction of average waste CV as increased recycling, in particular of plastics, occurs. The facility is designed to be able provide combined heat & power (CHP) allowing export of heat to local offtakers, options are being explored. The site uses a state-of-the-art combustion control system, with 5-pass boiler. The steam turbine generates 44MW of electricity, enough to power the site and approx. 80,000 homes. The plant is equipped with the complex ‘XeroSorp’ dry flue gas treatment system to minimise emissions. The site is a joint venture between Encyclis and Biffa with Encyclis having the contract to operate and maintain the plant. | K5: Include summary of plant design, design capacity, no. of combustion lines, electrical and heat capacity and any other general information that describes the facility, its location and purpose
A20: Summary of Operational Processes and Procedures
A22: Incoming refuse collection vehicles and bulk transport vehicles enter the site and proceed to the incoming weighbridge. After weighing in, the vehicles continue to the enclosed reception hall where they will discharge their load into the waste storage bunker. Vehicle loads are inspected randomly in the Tipping Hall to confirm the nature of incoming waste. Once vehicles have deposited their waste they leave the site via a second weighbridge. Potential emissions of odour and dust from the tipping hall and refuse bunkers are controlled by forced draught fans located above the refuse bunkers. These draw air from the bunker hall and reception area into the furnace to feed the combustion process, creating a slight negative pressure. Whilst the plant is offline, a carbon odour control system is active to ensure all odour remains controlled. The waste combustion takes place on a HZI moving grate, the heat generated being used to create superheated steam which is used to drive the steam turbine and generate electricity. Heat from turbine bleeds can be used for combined heat and power systems and is also used for pre-heating of combustion air to maximise efficiency. Condensing of the steam takes place via air cooled condensing system and the condensate cycles back around in a closed system (other than necessary top up). Emission control is via injection of ammonia into the furnace for NOx control via SNCR technology. At the end of the boiler and gas path is the HZI Xerosorp system where lime and activated carbon are added to remove acidic gases, dioxins, furans and heavy metals before this is all filtered by a bag filter system which removes the lime and carbon added and particulates from the combustion process producing APCr. Emissions are measured continuously in stack and by extractive stack measurements as required by the environmental permit. Residues from the process, IBA and APCr, are both sent to specialist reprocessing sites. IBA has metals removed for recyling and is reprocessed into IBAA (Incinerator Bottom Ash Aggregate). The APCr is sent to OCO Technology who use accelerated cabonation technology to produce a carbon negative aggregate material which encapsulates the absorbed substances from the APCr. Maintenance is controlled by a CMMS system and consists of planned preventative maintenance (ppm), derived from both experience of the plant and OEM requirements, and reactive maintenance. An annual shutdown period, during which maintenance and statutory inspections are carried out, is completed. The plant operates a document control system meeting the requirements of the Encyclis document management system and ISO 9001, 14001 and 45001. Commisioning of the site took place from late 2022 until 24th May 2024 at which point the site was handed over from the construction team to the O&M team. Takeover by Encyclis - 24th May 2023. | K22: Include summary of key processes and procedures such as (but not limited to); waste reception, control rooms, grate, bed and boiler, energy & heat generation, cooling systems, residue management, emission controls, health and safety systems, maintenance

Sheet Contents
A1: =+'Cover Page'!$B$29 -> Annual Performance Report 2024 | E1: =+'Cover Page'!$B$33 -> Newhurst Energy Recovery Facility
A3: Contents | K3: Notes:
A4: Section | B4: Subject | H4: Page | K4: Section references and Page nos. to be inserted
B5: Facility Information | H5: 2 | K5: Sections and Subjects may require adjustment by individual operators to meet specific reporting requirements as defined in the sites Permit(s)
B6: Operational Data | H6: 4
B7: Operational Summary | H7: 6
B8: Performance Form 1 | H8: 7
B9: Energy Form 1 | H9: 9
B10: Permit Compliance | H10: 10
B11: Improvements | H11: 13
B12: Public Liaison | H12: 14
B13: Carbon dioxide and nitrous oxide emissions | H13: 15
B14: Residue Quality | H14: 17
B15: Emissions to Water | H15: 18
B16: Emissions to Air (periodically monitored) | H16: 19
B17: Emissions to Air (continuously monitored) | H17: 22
B18: Hydrogen Chloride emissions | H18: 24
B19: Sulphur Dioxide emissions | H19: 25
B20: Oxides of Nitrogen emissions | H20: 26
B21: Total Organic Carbon emissions | H21: 27
B22: Particulate Matter emissions | H22: 28
B23: Carbon Monoxide emissions | H23: 29
B24: Ammonia emissions | H24: 31
A27: Version Control
A28: Section | B28: Information | H28: Date
A35: Distribution
A36: Copy | B36: Name, Role | H36: No.
A45: This report is required under the Industrial Emissions Directive’s Article 55(2) requirements on reporting and public information on waste incineration plants and co-incineration plants, which require the operator to produce an annual report on the functioning and monitoring of the plant and make it available to the public.

Sheet Operational Data
A1: =+'Cover Page'!$B$29 -> Annual Performance Report 2024 | E1: =+'Cover Page'!$B$33 -> Newhurst Energy Recovery Facility
A3: Operational Data
A4: Plant Size | B4: 455000 | D4: tonnes pa | F4: MWth | H4: MWe | J4: Notes:
A5: No. of combustion lines | B5: 1 | D5: No. of Turbines: | F5: 1 | J5: * - RDF to include SRF
J6: ** - Combusted tonnage = tonnes delivered in period + (tonnes in bunker at start of period – tonnes in bunker at end of period), or equivalent calculation depending on plant type
A7: Waste types received | B7: Unit | C7: Q1 | D7: Q2 | E7: Q3 | F7: Q4 | G7: Year Total | H7: %
A8: Household / Local Authority | B8: tonnes | C8: 20968.86 | D8: 20529.84 | E8: 23645.1 | F8: 27472.2 | G8: =SUM(C8:F8) -> 92616 | H8: =IF(G8>0,G8/$G$18,"-") -> 0.2669446023
A9: Commercial & Industrial | C9: 60343.98 | D9: 48129.44 | E9: 54424.89 | F9: 58514.56 | G9: =SUM(C9:F9) -> 221412.87 | H9: 0.6381723518 | J9: *** - CHP plants only
A10: Hazardous | C10: 0 | D10: 0 | E10: 0 | F10: 0 | G10: 0 | H10: - | J10: **** Availability Definition: 'the availability of a line is to be calculated by the number of hours the line reported Continuously Monitored emission levels to the Regulator through the calendar year divided by the total number of hours in that year. The overall plant availability is calculated as the Mean of all lines in the plant. For clarity this includes periods of abnormal operation.' Rationale: The primary function of an Energy from Waste facility is the disposal of waste. It follows therefore that the availability of a plant is determined by the period of time a facility spends undertaking this activity.
A11: Clinical (180104 + 180109) | C11: 95.68 | D11: 339.64 | E11: 700.04 | F11: 455.52 | G11: 1590.88 | H11: 0.004585350576
A12: Waste wood (biomass) | C12: 0 | D12: 0 | E12: 0 | F12: 0 | G12: 0 | H12: -
A13: Refuse Derived Fuel * - H'hold/LA | C13: 47.4 | D13: 26.18 | E13: 0 | F13: 0 | G13: =SUM(C13:F13) -> 73.58 | H13: 0.0002120776522
A14: Refuse Derived Fuel * - C&I | C14: 8206.06 | D14: 8045.78 | E14: 6003.8 | F14: 8988.38 | G14: 31244.02 | H14: 0.09005379734
A15: Other [020103] | C15: 2.26 | D15: 0.86 | E15: 1.74 | F15: 6.18 | G15: 11.04 | H15: 3.182029466e-05
A16: Other [Please specify] | C16: N/A | G16: 0 | H16: -
A17: Other [Please specify] | C17: N/A | G17: 0 | H17: -
A18: Total waste received | C18: =SUM(C8:C17) -> 89664.24 | D18: =SUM(D8:D17) -> 77071.74 | E18: =SUM(E8:E17) -> 84775.57 | F18: =SUM(F8:F17) -> 95436.84 | G18: 346948.39
A19: Rejected Waste | C19: 3 | D19: 2 | E19: 0 | F19: 2 | G19: =SUM(C19:F19) -> 7 | H19: =IF(G19>0,G19/$G$18,"-") -> 2.017591147e-05
A20: Unprocessed waste transferred out | C20: 0 | D20: 0 | E20: 0 | F20: 0 | G20: =SUM(C20:F20) -> 0 | H20: =IF(G20>0,G20/$G$18,"-") -> -
A21: Total waste combusted ** | C21: 90668.2 | D21: 78557.9 | E21: 85535.1 | F21: 96041 | G21: =SUM(C21:F21) -> 350802.2
A22: Household / Local Authority = 200301, 191212 & 191210 direct municipal waste Commercial & Industrial = 200301, 191212 & 191210 other sources Total waste combusted ** = as measured by waste cranes / DCS
J25: Password for protected cells A password has been set to prevent accidental editing of cells with formulae. If you still need to make an edit for some reason then the password = 1234
A26: Energy Usage / Export | B26: Unit | C26: Q1 | D26: Q2 | E26: Q3 | F26: Q4 | G26: Year Total | H26: KWh/te
A27: Power Generated | B27: MWh | C27: 88983.8 | D27: 70080.3 | E27: 81255.6 | F27: 93651.1 | G27: =SUM(C27:F27) -> 333970.8 | H27: =IF(G27>0,G27*1000/$G$21,"-") -> 952.0202553
A28: Power Exported | C28: 82783.6 | D28: 64831.7 | E28: 75045.8 | F28: 86924.1 | G28: =SUM(C28:F28) -> 309585.2 | H28: =IF(G28>0,G28*1000/$G$21,"-") -> 882.5064381
A29: Power Used on site | C29: 6372 | D29: 5912.2 | E29: 6453.2 | F29: 6666.4 | G29: =SUM(C29:F29) -> 25403.8 | H29: =IF(G29>0,G29*1000/$G$21,"-") -> 72.41630754
A30: Power Imported | C30: 152 | D30: 675 | E30: 267.6 | F30: 6.9 | G30: 1101.5 | H30: =IF(G30>0,G30*1000/$G$21,"-") -> 3.139946101
A31: Parasitic Load | B31: % | C31: =IF(C27>0,1-C28/(C27+C30),"-") -> 0.0712642956 | D31: =IF(D27>0,1-D28/(D27+D30),"-") -> 0.08371952348 | E31: =IF(E27>0,1-E28/(E27+E30),"-") -> 0.07945468284 | F31: =IF(F27>0,1-F28/(F27+F30),"-") -> 0.07189882338 | G31: =IF(G27>0,1-G28/(G27+G30),"-") -> 0.07606447922
A32: Thermal Energy Produced *** | B32: MWh | C32: N/A | G32: =SUM(C32:F32) -> 0 | H32: =IF(G32>0,G32*1000/$G$21,"-") -> -
A33: Thermal Energy Exported *** | C33: N/A | G33: 0 | H33: =IF(G33>0,G33*1000/$G$21,"-") -> -
A34: R1 value (if applicable) | B34: R1 | G34: 0.91
A36: Waste Disposal & Recovery | B36: Unit | C36: Q1 | D36: Q2 | E36: Q3 | F36: Q4 | G36: Year Total | H36: % inputs
A37: APC Residues - produced | B37: tonnes | C37: 2399.5 | D37: 2011.06 | E37: 2181.08 | F37: 2430.5 | G37: =SUM(C37:F37) -> 9022.14 | H37: =IF(G37>0,G37/$G$21,"-") -> 0.02571859584
A38: IBA - produced | C38: 16778.58 | D38: 15863.7 | E38: 17012.96 | F38: 17843 | G38: 67498.24 | H38: =IF(G38>0,G38/$G$21,"-") -> 0.192411108
A39: Metals recycling (total) 200140 | C39: 0 | D39: 1.56 | E39: 0 | F39: 161.04 | G39: =SUM(C39:F39) -> 162.6 | H39: 0.0004635090658
A40: 200301 - Mixed Municipal | C40: 0.84 | D40: 3.5 | E40: 3.52 | F40: 2.9 | G40: =SUM(C40:F40) -> 10.76 | H40: =IF(G40>0,G40/$G$21,"-") -> 3.067255565e-05
A41: 170201 - Wood | C41: 0.74 | D41: 0.94 | E41: 0 | F41: 0.64 | G41: 2.32 | H41: 6.613413485e-06
A42: 150106 - Mixed Packaging | C42: 2.64 | D42: 0.02 | E42: 0 | F42: 0 | G42: =SUM(C42:F42) -> 2.66 | H42: 7.582620634e-06
A43: 200304 Septic tank sludge | C43: 182.49 | D43: 155.42 | E43: 176 | F43: 159.64 | G43: 673.55 | H43: 0.001920027868
A44: Boiler water | C44: 90.47 | D44: 0 | E44: 65 | F44: 6.1 | G44: =SUM(C44:F44) -> 161.57 | H44: =IF(G44>0,G44/$G$21,"-") -> 0.0004605729383
A45: 161003 aqueous concentrates containing hazardous substances | C45: 0 | D45: 0 | E45: 28 | F45: 0 | G45: 28 | H45: 7.98170593e-05
A46: 130508 mixtures of wastes from grit chambers and oil/water separators (seperator annual service) | C46: 0 | D46: 0 | E46: 12.03 | F46: 0 | G46: =SUM(C46:F46) -> 12.03 | H46: =IF(G46>0,G46/$G$21,"-") -> 3.429282941e-05
A47: 170504 soil and stones (from onsite construction project Q4). | C47: 0 | D47: 0 | E47: 0 | F47: 260 | G47: 260 | H47: 0.0007411584078
A48: From quarterly waste returns as removed from site
A49: Metals recyling (total is metals from plant operation & maintenance and, since Nov 2024, large items of metal from IBA which is now removed by a separate offtaker rather than seperated and recycled at the IBA reprocessing facility.
L50: Q1 | M50: Q2 | N50: Q3 | O50: Q4 | P50: Density
A51: Raw Material Usage | B51: Unit | C51: Q1 | D51: Q2 | E51: Q3 | F51: Q4 | G51: Year Total | H51: kg or Ltr /te | K51: Ammonia L | L51: 28329.6 | M51: 24609.8 | N51: 15202.3 | O51: 4931.2 | P51: 0.911
A52: Mains Water | B52: ltrs | C52: 8608500 | D52: 10141000 | E52: 11100600 | F52: 7076800 | G52: =SUM(C52:F52) -> 36926900 | H52: =IF(G52>0,G52/$G$21,"-") -> 105.2641631 | K52: Ammonia kgs | L52: =L51*$P$51 -> 25808.2656 | M52: =M51*$P$51 -> 22419.5278 | N52: 13849.2953 | O52: 4492.3232 | Q52: =SUM(L52:O52) -> 66569.4119
A53: Other Water | B53: ltrs | C53: 0 | D53: 0 | E53: 0 | F53: 0 | G53: 0 | H53: =IF(G53>0,G53/$G$21,"-") -> - | K53: PAC t | L53: 22.7 | M53: 20.3 | N53: 22.3 | O53: 23.6
A54: Ammonia | B54: kgs | C54: 25808 | D54: 22420 | E54: 13849 | F54: 4492.3 | G54: 66569.3 | H54: 0.1897630631 | K54: PAC kgs | L54: =L53*1000 -> 22700 | M54: =M53*1000 -> 20300 | N54: =N53*1000 -> 22300 | O54: 23600 | Q54: =SUM(L54:O54) -> 88900
A55: Urea | B55: kgs | C55: N/A | G55: =SUM(C55:F55) -> 0 | H55: - | K55: Lime t | L55: 726.4 | M55: 695.8 | N55: 760.6 | O55: 823.3
A56: Activated Carbon | B56: kgs | C56: 22700 | D56: 20300 | E56: 22300 | F56: 23600 | G56: 88900 | H56: 0.2534191633 | K56: Lime kgs | L56: =L55*1000 -> 726400 | M56: =M55*1000 -> 695800 | N56: =N55*1000 -> 760600 | O56: =O55*1000 -> 823300 | Q56: 3006100
A57: Lime / hydrated lime | B57: kgs | C57: 726400 | D57: 695800 | E57: 760600 | F57: 823300 | G57: 3006100 | H57: 8.569216499 | K57: Diesel
A58: Fuel oil (burners) | B58: ltrs | C58: 55790.9 | D58: 121114.4 | E58: 17393.7 | G58: 194299 | H58: 0.5538705287
A59: Gas | B59: cuf | C59: N/A | G59: 0
A60: Other - HVO (burners) | B60: litrs | E60: 79270 | F60: 45617.7 | G60: 124887.7 | H60: 0.3560060342
A62: Summary | B62: Line/Unit | C62: Q1 | D62: Q2 | E62: Q3 | F62: Q4 | G62: Year Total | I62: Hrs in year
A63: Availability of waste combustion by line, hrs **** | B63: =+B5 -> 1 | C63: 2110.3 | D63: 1818.03 | E63: 2005.12 | F63: 2198.5 | G63: =SUM(C63:F63) -> 8131.95 | H63: =+G63/$I$63 -> 0.9257684426 | I63: 8784 | J63: Change this figure to 8784 in a leap year
B64: 2 | C64: N/A | G64: 0 | H64: =+G64/$I$63 -> 0
B65: 3 | C65: N/A | G65: 0 | H65: 0
B66: 4 | C66: N/A | G66: 0 | H66: 0
B67: 5 | C67: N/A | G67: =SUM(C67:F67) -> 0 | H67: 0
A68: Overall Availability, mean avg. of all lines, hrs | C68: =C63 -> 2110.3 | D68: =D63 -> 1818.03 | E68: 2005.12 | F68: 2198.5 | G68: 8131.95 | H68: 0.9257684426
A69: Hours of turbine operations, hrs | B69: 1 | C69: 2089.4 | D69: 1667.2 | E69: 1982.3 | F69: 2207.4 | G69: 7946.3 | H69: 0.9046334244
A70: Hours of turbine operations, hrs | B70: 2 | C70: N/A | G70: 0 | H70: 0
A71: Hours of heat / steam export | C71: N/A | G71: 0 | H71: =IF(B71>0,G70/I63,"n/a") -> n/a
A72: Net Calorific Value of waste | B72: MJ/kg
A73: Abnormal Events | B73: qty. | C73: 0 | D73: 0 | E73: 0 | F73: 0 | G73: 0 | H73: =IF(G73>0,"yes","no") -> no
A74: Abnormal operation | B74: hours | C74: 0 | D74: 0 | E74: 0 | F74: 0 | G74: 0 | H74: =+(G74)/I63 -> 0
A75: Permit Breaches | B75: qty. | C75: 0 | D75: 0 | E75: 0 | F75: 0 | G75: 0 | H75: =IF(G75>0,"yes","no") -> no

Sheet Operational Summary
A1: =+'Cover Page'!$B$29 -> Annual Performance Report 2024 | E1: =+'Cover Page'!$B$33 -> Newhurst Energy Recovery Facility
A3: Summary of Plant Operations and Maintenance during the reporting year | K3: Notes:
A5: 2024 was the first full year of operations for the Newhurst ERF site. Through the year the steam turbine has maintained availability and has operated without issue consistently. Outside the planned 14 day maintenance outage period in April 2024 and 7 day period in September 2024 the plant has maintained 92.6% availability. The CEMS underwent AST in February 2024 and all measurands checked passed AST, the QAL2 functions from January 2023 being maintained. An issue with the duty dust analyser developed late in 2023 and so the combi-probe this forms part of was replaced. Although this was a like for like replacement duty dust and the flow analyser (duty / standby) underwent QAL2 - this was completed alongside the AST, the new QAL2 factors being applied on receipt of the report 14th March 2024. In March 2024 the duty FID started to show signs of a problem developing. The FID unit was therefore replaced. As per M20 section 3.5.20 we used the same calibration function (unit replaced with an identical one) with an AST planned in alongside the forthcoming stack test meanwhile checking the measurements against the original standby unit. Unfortunately the standby FID developed the same symptoms and was replaced in May 2024, both new units therefore underwent QAL2 in May 2024 with the new QAL2 factors applied on receipt of the report on June 21st 2024. From restart after the September maintenance outage the site has used HVO (Hydrotreated Vegetable Oil) for the furnace burners, mobile plant and on site generators (emergency back up). This produces less oxides of sulphur, oxides of nitrogen, CO and CO2. All Improvement Conditions have been completed. In July 2024 the site underwent a 3 day audit as part of the ongoing surveillence for the ISO 9001, 14001 and 45001 certification. 3 minor non-conformances, 7 Opportunities for Improvement and 12 examples of good practice found. From 1st October 2024 the company who constructed the Newhurst site - HZI (HITACHI ZOSEN INOVA) rebranded to Kanadevia Inova. Although this happened part of the way through the year they are referred to as Kanadevia (or Kanadevia Inova), their current name, throughout. | K5: Include summary of key operational and/or maintenance activity undertaken in the year, such as any major component upgrades and/or replacements
A29: Summary of Residue Handling for the reporting year
A31: All IBA produced on site (including the metal content) was collected from site by Blue Phoenix and taken for reprocessing at their Sheffield reprocessing site (EPR/FP3732WU) until the start of November 2024. They remove and recycle the ferrous and non-ferrous metals and then create IBAA (Incinerator Bottom Ash Aggregate) from the remaining material. From 14th November 2024 the IBA has been taken to the Encyclis owned Wellingborough IBA Facility run by Day Aggregates (KP3902MB). Metals are collected seperately by Day group for re-processing. Throughout 2024 IBA has undergone routine ESA hazard analysis (2 samples / month analysed by WRc) and all samples have been shown to be non-hazardous. The first sample in the month of October underwent the full annual characterisation including HP1-HP15. It also included the Total soluble fraction and metals (Antimony, Cadmium, Thallium, Mercury, Lead, Chromium, Copper, Manganese, Nickel, Arsenic, Cobalt, Vanadium, Zinc) soluble fractions as required by the permit Table S3.4 before disposal at a new site in readiness for the move to Wellingborough as the disposal site. The site IBA has maintained its non-hazardous staus. The IBA was sampled monthly for TOC until June 2024 (end of first year of operation) and quarterly after that as per permit requirements. All samples have remained under the 3% ELV. The APCr produced at site is sent to one of the four O.C.O. plants for processing through their Accelerated Carbonation Technology where the APCr waste is reacted with Carbon Dioxide in a carbon capture process (CCU) to produce a calcium carbonate based aggregate which has End of Waste approval from the Environment Agency. | K31: Include in here a summary of residue handling regimes and destinations
A54: =+'Cover Page'!C39 -> 2024 | B54: Plant shut-downs
A55: Date | B55: Reason for shut-down | K55: Provide a very brief reason for plant shut-down e.g. "Shut-down prior to major outage"; "Emergency shut-down due to boiler tube leak" There is no need to include periods of hot-standby here (e.g. to clear feed chute hopper blockages). For clinical waste incinerators which require regular shut-downs for boiler cleaning, there is no need to record these here.
A56: 9th March | B56: Drag link conveyor blockage & rebuild
A57: 17th April | B57: Shutdown prior to major outage
A58: 20th June | B58: Shutdown after ash extractor fire
A59: 9th September | B59: Shutdown prior to outage

Sheet Perf. Form 1
A1: =+'Cover Page'!C39 -> 2024 | B1: Annual Reporting Performance Form 1
A3: =+'Cover Page'!B31 -> Permit EPR/RP3004MA v005 | F3: Operator: | G3: =+'Cover Page'!B37 -> Encyclis Ltd
A4: Facility: | B4: =+'Cover Page'!B33:I33 -> Newhurst Energy Recovery Facility | F4: Form: | G4: Performance 1
A6: Reporting Period from: | D6: 1st January 2024 | F6: to: | G6: 31st December 2024
A8: =+A1 -> 2024 | B8: Annual Reporting of Waste Disposal and Recovery
A9: Waste Description | C9: Disposal Route(s) | E9: Disposal Tonnes | G9: Recovery Tonnes | I9: % / tonne of waste incinerated
A10: 1) Hazardous Wastes
A11: APC Residues | C11: D01, R05 | E11: 402.58 | G11: 8619.56 | I11: =IF((E11+G11)>0,(E11+G11)/'Operational Data'!$G$21, "-") -> 0.02571859584
A12: IBA | C12: 0 | E12: 0 | G12: 0 | I12: =IF((E12+G12)>0,(E12+G12)/'Operational Data'!$G$21, "-") -> -
A13: 130508 mixtures of wastes from grit chambers and oil/water separators (seperator annual service) | C13: R09 | E13: 0 | G13: 12.03 | I13: =IF((E13+G13)>0,(E13+G13)/'Operational Data'!$G$21, "-") -> 3.429282941e-05
A14: 161003 aqueous concentrates containing hazardous substances | C14: R13 | E14: 0 | G14: 28 | I14: =IF((E14+G14)>0,(E14+G14)/'Operational Data'!$G$21, "-") -> 7.98170593e-05
A15: Total Hazardous Waste | E15: =SUM(E11:F14) -> 402.58 | G15: =SUM(G11:H14) -> 8659.59 | I15: =IF((E15+G15)>0,(E15+G15)/'Operational Data'!$G$21, "-") -> 0.02583270572
A17: 2) Non-Hazardous Wastes
A18: IBA | C18: R05 | G18: ='Operational Data'!G38 -> 67498.24 | I18: =IF((E18+G18)>0,(E18+G18)/'Operational Data'!$G$21, "-") -> 0.192411108
A19: Ferrous Metal | C19: R04 | G19: ='Operational Data'!G39 -> 162.6 | I19: =IF((E19+G19)>0,(E19+G19)/'Operational Data'!$G$21, "-") -> 0.0004635090658
A20: Process Water | C20: D08, R13 | E20: 90.5 | G20: 65.08 | I20: =IF((E20+G20)>0,(E20+G20)/'Operational Data'!$G$21, "-") -> 0.0004434977888
A21: 200301 - Mixed Municipal | C21: R03 | G21: ='Operational Data'!G40 -> 10.76 | I21: =IF((E21+G21)>0,(E21+G21)/'Operational Data'!$G$21, "-") -> 3.067255565e-05
A22: 170201 - Wood | C22: R03 | G22: ='Operational Data'!G41 -> 2.32 | I22: =IF((E22+G22)>0,(E22+G22)/'Operational Data'!$G$21, "-") -> 6.613413485e-06
A23: 150106 - Mixed Packaging | C23: R03 | G23: ='Operational Data'!G42 -> 2.66 | I23: =IF((E23+G23)>0,(E23+G23)/'Operational Data'!$G$21, "-") -> 7.582620634e-06
A24: 200304 Septic tank sludge | C24: D08 | E24: ='Operational Data'!G43 -> 673.55 | G24: ='Operational Data'!G48 -> 0 | I24: =IF((E24+G24)>0,(E24+G24)/'Operational Data'!$G$21, "-") -> 0.001920027868
A25: 170504 soil and stones (from onsite construction project Q4). | C25: D01 | E25: ='Operational Data'!G47 -> 260 | G25: ='Operational Data'!G49 -> 0 | I25: =IF((E25+G25)>0,(E25+G25)/'Operational Data'!$G$21, "-") -> 0.0007411584078
A26: Total Non-Hazardous Waste | E26: =SUM(E18:F25) -> 1024.05 | G26: =SUM(G18:H25) -> 67741.66 | I26: =IF((E26+G26)>0,(E26+G26)/'Operational Data'!$G$21, "-") -> 0.1960241697
A27: TOTAL WASTE | E27: =+E26+E15 -> 1426.63 | G27: =+G26+G15 -> 76401.25 | I27: =IF((E27+G27)>0,(E27+G27)/'Operational Data'!$G$21, "-") -> 0.2218568755
A29: Operator’s comments :
A30: All IBA is recycled into IBAA. IBA has remained non-hazardous throughout 2024. APCr goes through the OCO Accelerated Carbonation Technology where the APCr waste is reacted with Carbon Dioxide in a carbon capture process (CCU) to produce a calcium carbonate based aggregate. A small amount was diverted to landfill due to OCO operational issues.
A34: =+A1 -> 2024 | B34: Annual Reporting of Water and Other Raw Material Usage
A35: Raw Material | E35: Usage | G35: Unit | H35: Specific Usage | J35: Unit
A36: Mains Water | E36: =+'Operational Data'!G52/1000 -> 36926.9 | G36: m3 | H36: =IF(E36>0,E36/'Operational Data'!$G$21,"-") -> 0.1052641631 | J36: m3/te
A37: Total Water | E37: =+'Operational Data'!G53+'Operational Data'!G52/1000 -> 36926.9 | G37: m3 | H37: =IF(E37>0,E37/'Operational Data'!$G$21,"-") -> 0.1052641631 | J37: m3/te
A38: Urea / Ammonia | E38: =+'Operational Data'!G54 -> 66569.3 | G38: kg | H38: =IF(E38>0,E38/'Operational Data'!$G$21,"-") -> 0.1897630631 | J38: kg/te
A39: Activated Carbon | E39: =+'Operational Data'!G56 -> 88900 | G39: kg | H39: =IF(E39>0,E39/'Operational Data'!$G$21,"-") -> 0.2534191633 | J39: kg/te
A40: Lime / hydrated lime / Sodium Bicarb. | E40: =+'Operational Data'!G57 -> 3006100 | G40: kg | H40: =IF(E40>0,E40/'Operational Data'!$G$21,"-") -> 8.569216499 | J40: kg/te
A42: Operator’s comments :
A43: Planned 14 day maintenance outage period in April 2024 and 7 day period in September 2024. Ammonia use decreased whilst maintaining compliance after fine tuning of the SNCR system even with lower permit limits from December 2023. Lime usage increased due to lower permit limits which came into effect December 2023.
A46: =+A34 -> 2024 | B46: Annual Reporting of other performance indicators
A47: Parameter | C47: Results by Line
C48: A1 | D48: A2 | E48: A3 | F48: A4 | G48: A5 | I48: Turbine 1 | J48: Turbine 2
A49: Operating hours for the year, hours | C49: ='Operational Data'!G63 -> 8131.95 | D49: N/A | E49: N/A | F49: N/A | G49: N/A | H49: N/A | I49: ='Operational Data'!G69 -> 7946.3 | J49: N/A
A50: Number of periods of abnormal operation, qty. | C50: 0 | D50: N/A | E50: N/A | F50: N/A | G50: N/A | H50: N/A | I50: N/A | J50: N/A
A51: Cumulative hours of abnormal operation for this year, hours | C51: 0 | D51: N/A | E51: N/A | F51: N/A | G51: N/A | H51: N/A | I51: N/A | J51: N/A
A53: Operator’s comments :
A54: No abnormal operations or permit non-compliances.
A57: Signed: | G57: Date: | H57: 2025-01-17

Sheet Energy Form 1
A1: =+'Cover Page'!C39 -> 2024 | B1: Annual Reporting of Energy Usage/Export
A3: =+'Cover Page'!B31 -> Permit EPR/RP3004MA v005 | F3: Operator: | G3: =+'Cover Page'!B37 -> Encyclis Ltd
A5: Facility: | B5: =+'Cover Page'!B33:I33 -> Newhurst Energy Recovery Facility | F5: Form: | G5: Energy 1
A7: Reporting Period from: | D7: =+'Perf. Form 1'!D6:E6 -> 1st January 2024 | F7: to: | G7: =+'Perf. Form 1'!G6:H6 -> 31st December 2024
A9: Energy Source | D9: Energy Usage | F9: Unit | G9: Specific Usage (KWh/tonne incinerated
A10: Electricity Produced | D10: ='Operational Data'!G27 -> 333970.8 | F10: MWh | G10: =+'Operational Data'!H27 -> 952.0202553
A11: Electricity Imported | D11: =+'Operational Data'!G30 -> 1101.5 | F11: MWh | G11: =+'Operational Data'!H30 -> 3.139946101
A12: Electricity Exported | D12: 310163 | F12: MWh | G12: =+'Operational Data'!H28 -> 882.5064381
A13: Gas Oil (Diesel) | D13: ='Operational Data'!G58*0.85 -> 165154.15 | F13: kg
A14: Steam/hot water exported | D14: =+'Operational Data'!G33 -> 0 | F14: GWh | G14: =+'Operational Data'!H33 -> -
A15: HVO (Hydrotreated Vegetable Oil) (replacing Gas Oil as of September 2024) | D15: ='Operational Data'!G60*0.772 -> 96413.3044 | F15: kg
A18: Operator’s comments :
A19: Gas oil tonnes calculated from litres using a diesel density of 0.85 (taken from MSDS). HVO tonnes calculated from litres using a density of 0.772 (taken from MSDS).
A29: Signed: | G29: Date: | H29: 2025-01-17

Sheet Permit Compliance
A1: =+'Cover Page'!$B$29 -> Annual Performance Report 2024 | E1: =+'Cover Page'!$B$33 -> Newhurst Energy Recovery Facility
A3: Summary of Permit Compliance
A5: Compliance with permit limits for continuously monitored pollutants
A7: The plant met its emission limits as shown in the table below:
A8: Substance | C8: Percentage time compliant during operationNote 1 | L8: Notes:
C9: Half-hourly limit | F9: Daily limit | L9: Note 1: Please report to 2 decimal places, i.e. xx.xx% Note 2: Please enter into this table any permit non-compliances that the EA has given a CCS score for. Please also enter any other non-compliances which you have notified to the EA (e.g. ELV exceedances) but which have not yet been assessed by the EA. There is no need to enter any notifications which were subsequently assessed by the EA not to be permit breaches. Note 3: Please enter information here (rather than just referencing the notifications that were sent to the EA) including where relevant the incineration line reference, pollutant and value of the measured result for any ELV exceedances.
A10: Particulates | C10: 1 | F10: 1
A11: Oxides of nitrogen | C11: 1 | F11: 1
A12: Sulphur dioxide | C12: 1 | F12: 1
A13: Carbon monoxide | C13: 100.00% 95% of 10-min averages | F13: 1
A14: Total organic carbon | C14: 100%* | F14: 1
A15: Hydrogen chloride | C15: 1 | F15: 1
A16: Hydrogen fluoride | C16: N/A - Periodic monitoring | F16: N/A - Periodic monitoring
A17: Nitrous Oxide | C17: 1 | F17: 1
A18: Ammonia | C18: 1 | F18: 1
A19: NOTE * the data suggests TOC on 18th November had one half hour at 20.1 however this was not an emission. During the routine, planned, 6 monthly service of the CEMS a filter is replaced which is located at the back of the sample probes for the duty & standby gas analysers. An issue with the filter indicated an increased TOC level, the 'elevated' time period on the duty was 12:57 - 13:16. The CO report and other data showed that there were no combustion issues at the time and that the indicated elevated TOC was due to the filter not due to plant process & waste combustion. Filters have been returned to manufacturer for investigation. Issue duly reported in writing to site EA officers 19th November 2024.
A20: Summary of non-compliances under the permit Note 2
A21: Date | B21: Summary of non-compliance Note 3 | D21: Reason | G21: Measures taken to prevent reoccurrence | H21: CCS score if applicable*
H22: Impact | I22: Root cause
B23: None
A25: *If the Environment Agency (EA) has given a Compliance Classification Scheme (CCS) score due to a permit non-compliance it should be entered here (CCS4 = No impact; CCS3 = Minor impact; CCS2 = Significant impact; CCS1 = Major impact). If the EA has not yet assessed a non-compliance which you have notified to them, these columns should be left blank. Enter N/A if no score was given for the root cause.
A27: Summary of any complaints received and actions to taken to resolve them.
A28: Date | B28: Summary of complaint [including Line/Reference] | E28: Reason (including whether substantiated by the operator or the EA) | H28: Measures taken to prevent reoccurrence
A29: 2024-01-13 | B29: A 'smell' presumably from the Shepshed incinerator. No further detail given. Direct communication to site. | E29: Location approximately 2 miles NE of site. No issues on site, no odours recorded in on site monitoring, all emissions well within ELV. Wind v light SSW - WSW. Not substantiated - not related to site | H29: N/A
A30: 2024-02-18 | B30: Very strong odour getting into the house, No further details given. NIRS 02232788 | E30: Location ENE of site, wind from SW. No issues on site, no odours recorded in on site monitoring, all emissions well within ELV. Not substantiated - not related to site | H30: N/A
A31: 2024-04-01 | B31: Report of strong burning smell 1st April 2024 @ 14.55 hours Also reported there have been several incidents in the past 10 days (which complainant stated they had not reported). Reported via local council. | E31: There has been no record of any smoke, burning or similar smells on site looking back as far as 20th March. Plant running steadily throughout the period with emission levels well under the ELV within the Environmental Permit. One of the independantly completed odour surveys was completed on 22nd March recorded a smoke burning odour from a residential area at 09:49 on 22nd March but nothing from the plant. Location of complaint ENE of site, wind blowing from S to SE. Not substantiated - not related to site | H31: N/A
A32: 2024-04-28 | B32: Smell of pollution in front of property, somewhat similar to burning plastic. Reoccurring the last 4 evenings. Wanted to confirm the incinerator is filtered. Complaint via our 24hr telephone contact service. | E32: Complainant contacted, confirmed details of the on site filtration. The plant was offline for the annual maintenance outage at this time. Not substantiated - not related to site | H32: The complainant rang back a few days later to say they had found the source of the smell somewhere very local to where they lived.
A33: 2024-06-12 | B33: Lives by the Incinerator iand there has been a weird nasty smell all day. Complaint via our 24hr telephone contact service. | E33: Complainant contacted for further details. Reported an acrid plastic like smell, not wood or coal burning, had smelt it previously in Nov 2023. Plant running steadily throughout the period with emission levels well under the ELV within the Environmental Permit. The weather was winds of less than 5mph, wind variable around SW. The location of the complainant is ESE of site. Not substantiated - not related to site | H33: N/A
A34: 2024-10-25 | B34: Newhurst quarry has a incinerator which the caller states might be responsible for a substance that coats external surfaces, is described as an oily/greasy film. NIRS 02316927 | E34: It was not reported which Leicester Road as there is one in Shepshed and one in Loughborough. CEMS data for dust for the month of October supplied to EA, as reportedly happening over a few weeks. dust emissions have not exceeded 0.1mg/Nm3 (half hourly ELV 30mg/Nm3, daily ELV 5mg/Nm3). Not substantiated - not related to site | H34: The area of Leicester Rd in Shepshed has been looked at further as this was believed to be the source. A large area of allotments is located next to Leicester Rd Shepshed, activities there may be related to burning odours and greasy, dusty deposits.
A35: 25/11/2024 | B35: Complainant reported they were driving from Loughborough on the A512 towards Shepshed. As they were going over the motorway, the wind was almost not present and the plume of Newhurst ERF had sank to the floor, reported it smelled of burning plastic. NIRS 02327261 | E35: Plant running steadily with emission levels well under the ELV within the Environmental Permit. Daily odour checks were completed on site earlier that afternoon and detected no odour issues. On CCTV the plume is just visible but can be seen to be heading upwards from the top of the 96m high stack. The stack was approx 0.2 miles SSW of the complainant location with the wind blowing from the SSE. Not substantiated - not related to site | H35: N/A
A36: All complaints are thoroughly investigated using local weather station data, CEMS data, onsite daily odour monitoring, operational data and where relevant CCTV and offsite odour monitoring. We also visit the location of the complaint if we recieve details at the time the odour is being noticed. Response are given direct to the complainant where they have contacted site directly or supplied contact details. Response are sent to the EA or local council where the complaints are received via those bodies.

Sheet Improvements
A1: =+'Cover Page'!$B$29 -> Annual Performance Report 2024 | E1: =+'Cover Page'!$B$33 -> Newhurst Energy Recovery Facility
A3: Summary of Plant Improvements
A5: Summary of any efficiency improvements that have been completed within the year.
A6: Some fine tuning of the Ammonia NOx control system has been undertaken by Kanadevia Inova and Encyclis to minimise ammonia usage whilst maintaining permit compliance. From the restart after the outage in September (17th September 2024) all equipment on site which was previously operated on diesel now runs on HVO (Hydrotreated Vegetable Oil) with the exception of the fire pump. This includes the main burners for start-up / shutdown, emergency diesel generator and all mobile plant. This is a 12 month trial in agreement with the Agency and in participation with the OEMs of the furnace burners, EDG and mobile plant suppliers. HVO contains extremely low levels of sulphur (0.0005% Sulphur) and produces lower levels of NOx, CO and CO2.
A16: Summary of any permit improvement conditions that have been completed within the year and the resulting environmental benefits.
A17: The report for Improvement Improvement Condition 3, the Chromium VI measurement and dispersion modelling was submitted in May 2024. The report confirms: 1) Emissions from the operation of the Encyclis site will not cause a breach of the Cr VI EAL; 2) The impacts of the Encyclis site are assessed as not significant; 3) There is no risk of exceeding the Cr VI EAL over a long-term basis. 4) The current stack height is deemed appropriate based upon the stack emissions testing data.
A27: Summary of any changes to the plant or operating techniques which required a variation to the permit and a summary of the resulting environmental impact.
A28: None
A38: Summary of any other improvements made to the plant or planned to be made and a summary of the resulting environmental benefits.
A39: None

Sheet Public Liasion
A1: =+'Cover Page'!$B$29 -> Annual Performance Report 2024 | E1: =+'Cover Page'!$B$33 -> Newhurst Energy Recovery Facility
A3: Details of Public & Stakeholder Liaison
A5: Summary of events held during the reporting year.
A6: Date | C6: Description
A7: Quarterly (15/1/2024, 25/3/2024, 8/7/2024) | C7: Local Liaison Committee Meeting. Moved to 6 monthly with agreement of the LLC in July 2024. Next meeting Jan 2025
A8: Ongoing | C8: “Frontline” Specialist Call Answering & Handling services providing 24/7 call line for public communications or questions to site.
A9: 2024-06-08 | C9: Families Day - Open Day for staff families - approx 180 attendees
A10: 2024-02-08 | C10: Biffa - approx 25 attendees
A11: 2024-02-21 | C11: Loughborough University - approx 20 attendees
A12: 2024-03-06 | C12: Loughborough University - approx 30 attendees
A13: 2024-06-07 | C13: Pre-Win Conference - approx 50 attendees
A14: 2024-06-25 | C14: Biffa - approx 8 attendees
A15: 2024-08-20 | C15: Shepshed Council - approx 10 attendees
A16: 2024-10-09 | C16: Biffa - approx 5 attendees
A17: 2024-10-24 | C17: KVI - Management and potential suppliers & customers (KVI is site OEM)
A18: 2024-11-28 | C18: Biffa - approx 10 attendees
A19: 2024-12-17 | C19: Biffa - approx 10 attendees
A21: List of events planned for next year
A22: Date | C22: Description
A23: Six monthly | C23: Local Liaison Committee Meeting
A25: Ongoing | C25: “Frontline” Specialist Call Answering & Handling services providing 24/7 call line for public communications or questions to site.
A34: If you wish to be involved in the public liaison programme, please contact _________________

Sheet CO2 N2O
A1: =+'Cover Page'!$B$29 -> Annual Performance Report 2024 | C1: =+'Cover Page'!$B$33 -> Newhurst Energy Recovery Facility
A3: Carbon dioxide emissions and biogenic content of waste inputs | F3: Notes:
A5: Carbon dioxide emissions (all types of plant)
B6: Annual mass of carbon dioxide released | C6: tonnes | D6: 255137.07
B7: Annual mass of carbon dioxide released per tonne of waste burned | C7: t CO2 / t waste | D7: =D6/'Operational Data'!G21 -> 0.7272960945
B8: Annual mass of carbon dioxide released per MWh of energy exported | C8: t CO2 / MWh export | D8: =D6/'Operational Data'!G28 -> 0.8241255396
B9: Description of how annual carbon dioxide mass emission has been calculated. See Note 1 | C9: Direct measurement from CEMS with QAL2 on both CO2 and flow | F9: Note 1: All permits require operators to continuously monitor CO2 to EN14181 and flow to BS EN 16911-2 (unless otherwise agreed in writing). Operators must therefore use the results from these instruments to calculate their annual CO2 emissions. Where an operator does not have a flow meter calibrated to BS EN 16911-2, the averaged flow measurement from that year's periodic monitoring can be used instead. If the plant does not have calibrated CO2 CEMS, a suitably justified emissions factor can be used.
A10: Nitrous oxide emissions (only plants which use ammonia or urea to abate NOx emissions)
B11: Annual mass emissions of nitrous oxide | C11: tonnes N2O | D11: 0.266
B12: Description of how annual nitrous oxide mass emission has been calculated See Note 2 | C12: Direct measurement from CEMS with QAL2 on both N2O and flow | F12: Note 2: All permits require operators to continuously monitor N2O to EN14181 and flow to BS EN 16911-2, unless otherwise agreed in writing. Operators must therefore use the results from these instruments to calculate their annual N2O emissions. Where an operator does not have a flow meter calibrated to BS EN 16911-2, the averaged flow measurement from periodic monitoring can be used instead. If the plant does not have calibrated N2O CEMS, data from periodic monitoring or a suitably justified emissions factor can be used instead.
A13: Total annual carbon dioxide + nitrous oxide emissions. See Note 3. | C13: tonnes CO2e | D13: =D11*265 -> 70.49 | F13: Note 3: Total annual carbon dioxide and nitrous oxide emissions reported as carbon dioxide equivalent where 1 tonne nitrous oxide is equivalent to 265 tonnes carbon dioxide.
A14: Biogenic CO2 emissions (See Note 4) | F14: Note 4: Only plants combusting residual municipal waste, refuse derived fuel or solid recovered fuel need complete this section.
B15: Percentage of total carbon dioxide emissions arising from biogenic waste | C15: % | D15: 0.52
B16: No. of measurements undertaken | C16: Number | D16: 1
B17: Description of how percentage biogenic carbon dioxide emissions have been measured or calculated. See Note 5 | C17: Extractive stack sample taken by Element during H2 sampling campaign and analysed by Beta Analytic Inc. Results are accredited to ISO/IEC 17025:2017 PJLA #59423 standards | F17: Note 5: The results from C14 sampling should be used if this is carried out at the plant (either via an installed sampler or from spot samples). Otherwise, as an approximation (and in lieu of any more accurate metrics which may be developed in future), the measured or estimated biogenic fraction by net calorific value (see Note 6) can be assumed to be the same as the biogenic CO2 fraction of the total CO2 emissions from the plant.
A18: Biogenic fraction of waste feedstock (See Note 4)
B19: Yearly average biogenic percentage of the waste by net calorific value (NCV) | C19: % | D19: 0.6211
B20: Description of how biogenic percentage (by NCV) has been calculated or estimated. See Note 6 | C20: Quarterly waste sampling. Samples taken on 4 consecutive days for each sampling campaign (4 x 4 = 16 samples total in the year) | F20: Note 6: If C14 sampling is carried out at the plant, the methodology set out in the embedded document entitled "Renewable Energy Association Energy Content of Fuels - Description of Method" embedded below can be used to calculate the biogenic percentage by net calorific value. Otherwise, data from waste sampling or BIOMA software can be used; or if none of these are available, an estimated figure with justification or a figure assumed on the basis of up-to-date industry data can be used.
B21: Yearly average biogenic percentage of the waste by mass | C21: % | D21: 0.5315
B22: If waste sampling undertaken, no. of samples used to ascertain average biogenic percentages above | C22: Number | D22: 16 4 samples each of the four quarters
B23: Description of how biogenic percentage (by mass) has been calculated or estimated. See Note 7 | C23: Quarterly waste sampling. Samples taken on 4 consecutive days for each sampling campaign (4 x 4 = 16 samples total in the year) | F23: Note 7: Where available, data from waste sampling should be used; otherwise, an estimated figure with justification can be used, or a figure assumed on the basis of up-to-date industry data.
B25: Comments:
B26: NOTE N2O emission for 2024 was 266kg (0.266 tonnes). % Biomass by CV completed following ISO 17025:2017 UKAS lab 8738 % Biomass by mass completed following ISO 17025:2017 UKAS lab 1765

Sheet Residue Quality
A1: =+'Cover Page'!$B$29 -> Annual Performance Report 2024 | E1: =+'Cover Page'!$B$33 -> Newhurst Energy Recovery Facility
A3: Residue Quality Monitoring Requirements
A5: Summary of monitoring undertaken and compliance
A6: The site has continued with the usual two samples per month IBA as per ESA protocol. As we were in first year of operation up to June 2024 one of these samples each month has been sent for full permit compliance analysis, the other for ESA core hazard assessment. From July 2024 as per site permit, and with agreement of the Agency, we continued with two samples per month for ESA hazard assessment but one randomly selected per quarter was sent for full permit compliance analysis, the other five in the quarter for ESA core hazard assessment. All IBA has been non-hazardous and below the permit compliance limit of 3% TOC.
A8: APCr has been sampled and analysed once per month until June 2024, then once per quarter from July 2024 as per site permit, and with agreement of the Agency and analysis completed and reported as required by the permit.
A10: A full annual analysis including soluble fractions was completed on the October 1 sample in accordance with the protocol and to meet permit requirement table S3.4 for the move of IBA disposal from Blue Phoenix Sheffield to Encyclis/Day Aggregates at Wellingborough.
A12: All residue analysis was carried out for Encyclis by WRc.
A14: Commentary on any specific events
A15: Date & Event | C15: Description
C16: None
A22: Residue Quality Monitoring Results
A23: Parameter (unit) | C23: Limit* | D23: Normal Operation
D24: Bottom ash | F24: APC Residues
A25: Loss on Ignition (average %) | C25: <5% | D25: TOC <3%
A26: Total Organic Carbon (average %) | C26: <3% | D26: 0.9
A27: No. of Assessments Undertaken | C27: --- | D27: 8 | F27: 8
A28: No. of Hazardous Results | C28: --- | D28: 0
A29: * The permit will specify a limit of either 5% loss on ignition or 3% total organic carbon. If both are measured anyway, please enter the results here, even where the limit does not apply.
A31: Comments :
A32: None

Sheet Water
A1: =+'Cover Page'!$B$29 -> Annual Performance Report 2024 | E1: =+'Cover Page'!$B$33 -> Newhurst Energy Recovery Facility
A3: Emissions to Water
A5: Summary of monitoring undertaken and compliance
A6: N/A - no emission to sewer
A13: Commentary on any specific events
A14: Date & Event | C14: Description
A20: Emissions to Water / Sewer
A21: Parameter | D21: Monitoring Frequency | F21: Limit | G21: Target | H21: Max. | I21: Average
A23: No Analysis - no emisison to sewer | D23: N/A

Sheet Air (periodic) Q1
A1: =+'Cover Page'!$B$29 -> Annual Performance Report 2024 | E1: =+'Cover Page'!$B$33 -> Newhurst Energy Recovery Facility
A3: Emissions to Air (periodically monitored)
A5: Summary of monitoring undertaken, standards used and compliance | K5: Notes:
A6: All analysis below completed by permit specified method. Where triplicate runs of the measurement is required the reported value is the average of the results. NOTE: PAHs monitoring frequency is annually as per permit Table S3.1 Completed 12th - 16th February 2024 | K6: Template may require adjustment for any bespoke monitoring requirements of permit - please also check that all default ELV values, reference periods and the stated oxygen reference value match those for your plant, and edit if necessary!
A9: Results of emissions to air that are periodically monitored - oxygen reference 11%
A10: Substance | C10: Ref. Period | D10: Emission Limit Value | F10: Average | K10: User to add additional tables as necessary, depending on whether quarterly or bi-annual reporting is required for the compliance year
F11: A1 | G11: A2 | H11: A3 | I11: A4 | J11: A5
A12: Hydrogen fluoride | C12: Average of 3 consecutive measurements of at least 30 minutes each | D12: 1 mg/m3 | F12: 0.06 | G12: N/A | H12: N/A | I12: N/A | J12: N/A
A13: Cd and Tl and their compounds | C13: Average of 3 consecutive measurements of at least 30 minutes each | D13: 0.02 mg/m3 | F13: <0.001 | G13: N/A | H13: N/A | I13: N/A | J13: N/A
A14: Hg and its compounds | C14: Average of 3 consecutive measurements of at least 30 minutes each | D14: 0.02 mg/m3 | F14: 0.002 | G14: N/A | H14: N/A | I14: N/A | J14: N/A
A15: Sb, As, Pb, Cr, Co, Cu, Mn, Ni, V and their compounds | C15: Average of 3 consecutive measurements of at least 30 minutes each | D15: 0.3 mg/m3 | F15: 0.013 | G15: N/A | H15: N/A | I15: N/A | J15: N/A
A16: Dioxins & Furans (I-TEQ) | C16: 6-8hrs | D16: 0.06 ng/m3 | F16: 0.0166 | G16: N/A | H16: N/A | I16: N/A | J16: N/A
A17: PCBs (WHO-TEQ Humans / Mammals) | C17: 6-8hrs | D17: None set ng/m3 | F17: 0.0009 | G17: N/A | H17: N/A | I17: N/A | J17: N/A
A18: PCBs (WHO-TEQ Fish) | C18: 6-8hrs | D18: None set ng/m3 | F18: 4.1e-05 | G18: N/A | H18: N/A | I18: N/A | J18: N/A
A19: PCBs (WHO-TEQ Birds) | C19: 6-8hrs | D19: None set ng/m3 | F19: 0.00225 | G19: N/A | H19: N/A | I19: N/A | J19: N/A
A20: Dioxins & Furans (WHO-TEQ Humans / Mammals) | C20: 6-8hrs | D20: None set ng/m3 | F20: 0.015 | G20: N/A | H20: N/A | I20: N/A | J20: N/A
A21: Dioxins & Furans (WHO-TEQ Fish) | C21: 6-8hrs | D21: None set ng/m3 | F21: 0.0162 | G21: N/A | H21: N/A | I21: N/A | J21: N/A
A22: Dioxins & Furans (WHO-TEQ Birds) | C22: 6-8hrs | D22: None set ng/m3 | F22: 0.0269 | G22: N/A | H22: N/A | I22: N/A | J22: N/A
A23: Brominated Dioxins & Furans (I-TEQ) | C23: 6-8hrs | D23: None set ng/m3 | F23: 0.0055 | G23: N/A | H23: N/A | I23: N/A | J23: N/A
A24: Anthanthrene | C24: 6-8hrs | D24: None set µg/m3 | F24: N/A | G24: N/A | H24: N/A | I24: N/A | J24: N/A
A25: Benzo(a)anthracene | C25: 6-8hrs | D25: None set µg/m3 | F25: N/A | G25: N/A | H25: N/A | I25: N/A | J25: N/A
A26: Benzo(a)pyrene | C26: 6-8hrs | D26: None set µg/m3 | F26: N/A | G26: N/A | H26: N/A | I26: N/A | J26: N/A
A27: Benzo(b)fluoranthene | C27: 6-8hrs | D27: None set µg/m3 | F27: N/A | G27: N/A | H27: N/A | I27: N/A | J27: N/A
A28: Benzo(b)naptho(2,1-d) thiophene | C28: 6-8hrs | D28: None set µg/m3 | F28: N/A | G28: N/A | H28: N/A | I28: N/A | J28: N/A
A29: Benzo(c)phenanthrene | C29: 6-8hrs | D29: None set µg/m3 | F29: N/A | G29: N/A | H29: N/A | I29: N/A | J29: N/A
A30: Benzo(ghi)perylene | C30: 6-8hrs | D30: None set µg/m3 | F30: N/A | G30: N/A | H30: N/A | I30: N/A | J30: N/A
A31: Benzo(k)fluoranthene | C31: 6-8hrs | D31: None set µg/m3 | F31: N/A | G31: N/A | H31: N/A | I31: N/A | J31: N/A
A32: Cholanthrene | C32: 6-8hrs | D32: None set µg/m3 | F32: N/A | G32: N/A | H32: N/A | I32: N/A | J32: N/A
A33: Chrysene | C33: 6-8hrs | D33: None set µg/m3 | F33: N/A | G33: N/A | H33: N/A | I33: N/A | J33: N/A
A34: Cyclopenta(cd)pyrene | C34: 6-8hrs | D34: None set µg/m3 | F34: N/A | G34: N/A | H34: N/A | I34: N/A | J34: N/A
A35: Dibenzo(ai)pyrene | C35: 6-8hrs | D35: None set µg/m3 | F35: N/A | G35: N/A | H35: N/A | I35: N/A | J35: N/A
A36: Dibenzo(ah)anthracene | C36: 6-8hrs | D36: None set µg/m3 | F36: N/A | G36: N/A | H36: N/A | I36: N/A | J36: N/A
A37: Fluoranthene | C37: 6-8hrs | D37: None set µg/m3 | F37: N/A | G37: N/A | H37: N/A | I37: N/A | J37: N/A
A38: Indeno(123-cd) pyrene | C38: 6-8hrs | D38: None set µg/m3 | F38: N/A | G38: N/A | H38: N/A | I38: N/A | J38: N/A
A39: Naphthalene | C39: 6-8hrs | D39: None set µg/m3 | F39: N/A | G39: N/A | H39: N/A | I39: N/A | J39: N/A
A40: Comments :
A41: Values quoted above are WITHOUT the uncertainty subtracted. ‘how to assess compliance with an ELV within Monitoring stack emissions: maximum uncertainty values for periodic monitoring - GOV.UK (www.gov.uk) (formerly part of M2)' allows the uncertainty to be substracted before assessment against ELV.

Sheet Air (periodic) Q2
A1: =+'Cover Page'!$B$29 -> Annual Performance Report 2024 | E1: =+'Cover Page'!$B$33 -> Newhurst Energy Recovery Facility
A3: Emissions to Air (periodically monitored)
A5: Summary of monitoring undertaken, standards used and compliance | K5: Notes:
A6: All analysis below completed by permit specified method. Where triplicate runs of the measurement is required the reported value is the average of the results. NOTE: PAHs monitoring frequency is annually as per permit Table S3.1 Completed 21st - 23rd May 2024 | K6: Template may require adjustment for any bespoke monitoring requirements of permit - please also check that all default ELV values, reference periods and the stated oxygen reference value match those for your plant, and edit if necessary!
A9: Results of emissions to air that are periodically monitored - oxygen reference 11%
A10: Substance | C10: Ref. Period | D10: Emission Limit Value | F10: Average | K10: User to add additional tables as necessary, depending on whether quarterly or bi-annual reporting is required for the compliance year
F11: A1 | G11: A2 | H11: A3 | I11: A4 | J11: A5
A12: Hydrogen fluoride | C12: Average of 3 consecutive measurements of at least 30 minutes each | D12: 1 mg/m3 | F12: 0.03 | G12: N/A | H12: N/A | I12: N/A | J12: N/A
A13: Cd and Tl and their compounds | C13: Average of 3 consecutive measurements of at least 30 minutes each | D13: 0.02 mg/m3 | F13: 0.001 | G13: N/A | H13: N/A | I13: N/A | J13: N/A
A14: Hg and its compounds | C14: Average of 3 consecutive measurements of at least 30 minutes each | D14: 0.02 mg/m3 | F14: 0.003 | G14: N/A | H14: N/A | I14: N/A | J14: N/A
A15: Sb, As, Pb, Cr, Co, Cu, Mn, Ni, V and their compounds | C15: Average of 3 consecutive measurements of at least 30 minutes each | D15: 0.3 mg/m3 | F15: 0.01 | G15: N/A | H15: N/A | I15: N/A | J15: N/A
A16: Dioxins & Furans (I-TEQ) | C16: 6-8hrs | D16: 0.06 ng/m3 | F16: 0.065* 0.0517 with MU removed | G16: N/A | H16: N/A | I16: N/A | J16: N/A
A17: PCBs (WHO-TEQ Humans / Mammals) | C17: 6-8hrs | D17: None set ng/m3 | F17: 0.009 | G17: N/A | H17: N/A | I17: N/A | J17: N/A
A18: PCBs (WHO-TEQ Fish) | C18: 6-8hrs | D18: None set ng/m3 | F18: 0.0004 | G18: N/A | H18: N/A | I18: N/A | J18: N/A
A19: PCBs (WHO-TEQ Birds) | C19: 6-8hrs | D19: None set ng/m3 | F19: 0.014 | G19: N/A | H19: N/A | I19: N/A | J19: N/A
A20: Dioxins & Furans (WHO-TEQ Humans / Mammals) | C20: 6-8hrs | D20: None set ng/m3 | F20: 0.0554 | G20: N/A | H20: N/A | I20: N/A | J20: N/A
A21: Dioxins & Furans (WHO-TEQ Fish) | C21: 6-8hrs | D21: None set ng/m3 | F21: 0.0642 | G21: N/A | H21: N/A | I21: N/A | J21: N/A
A22: Dioxins & Furans (WHO-TEQ Birds) | C22: 6-8hrs | D22: None set ng/m3 | F22: 0.1047 | G22: N/A | H22: N/A | I22: N/A | J22: N/A
A23: Brominated Dioxins & Furans (I-TEQ) | C23: 6-8hrs | D23: None set ng/m3 | F23: 1e-05 | G23: N/A | H23: N/A | I23: N/A | J23: N/A
A24: Anthanthrene | C24: 6-8hrs | D24: None set µg/m3 | F24: <0.001 | G24: N/A | H24: N/A | I24: N/A | J24: N/A
A25: Benzo(a)anthracene | C25: 6-8hrs | D25: None set µg/m3 | F25: 0.004 | G25: N/A | H25: N/A | I25: N/A | J25: N/A
A26: Benzo(a)pyrene | C26: 6-8hrs | D26: None set µg/m3 | F26: <0.001 | G26: N/A | H26: N/A | I26: N/A | J26: N/A
A27: Benzo(b)fluoranthene | C27: 6-8hrs | D27: None set µg/m3 | F27: 0.003 | G27: N/A | H27: N/A | I27: N/A | J27: N/A
A28: Benzo(b)naptho(2,1-d) thiophene | C28: 6-8hrs | D28: None set µg/m3 | F28: 0.001 | G28: N/A | H28: N/A | I28: N/A | J28: N/A
A29: Benzo(c)phenanthrene | C29: 6-8hrs | D29: None set µg/m3 | F29: <0.001 | G29: N/A | H29: N/A | I29: N/A | J29: N/A
A30: Benzo(ghi)perylene | C30: 6-8hrs | D30: None set µg/m3 | F30: 0.002 | G30: N/A | H30: N/A | I30: N/A | J30: N/A
A31: Benzo(k)fluoranthene | C31: 6-8hrs | D31: None set µg/m3 | F31: 0.002 | G31: N/A | H31: N/A | I31: N/A | J31: N/A
A32: Cholanthrene | C32: 6-8hrs | D32: None set µg/m3 | F32: <0.001 | G32: N/A | H32: N/A | I32: N/A | J32: N/A
A33: Chrysene | C33: 6-8hrs | D33: None set µg/m3 | F33: 0.009 | G33: N/A | H33: N/A | I33: N/A | J33: N/A
A34: Cyclopenta(cd)pyrene | C34: 6-8hrs | D34: None set µg/m3 | F34: <0.001 | G34: N/A | H34: N/A | I34: N/A | J34: N/A
A35: Dibenzo(ai)pyrene | C35: 6-8hrs | D35: None set µg/m3 | F35: <0.001 | G35: N/A | H35: N/A | I35: N/A | J35: N/A
A36: Dibenzo(ah)anthracene | C36: 6-8hrs | D36: None set µg/m3 | F36: <0.001 | G36: N/A | H36: N/A | I36: N/A | J36: N/A
A37: Fluoranthene | C37: 6-8hrs | D37: None set µg/m3 | F37: 0.097 | G37: N/A | H37: N/A | I37: N/A | J37: N/A
A38: Indeno(123-cd) pyrene | C38: 6-8hrs | D38: None set µg/m3 | F38: 0.003 | G38: N/A | H38: N/A | I38: N/A | J38: N/A
A39: Naphthalene | C39: 6-8hrs | D39: None set µg/m3 | F39: 0.34 | G39: N/A | H39: N/A | I39: N/A | J39: N/A
A40: Comments :
A41: * Values quoted above are WITHOUT the uncertainty subtracted. ‘how to assess compliance with an ELV within Monitoring stack emissions: maximum uncertainty values for periodic monitoring - GOV.UK (www.gov.uk) (formerly part of M2)' allows the uncertainty to be substracted before assessment against ELV. Accepted as correct and not a permit breach - CAR form CAR Form Q2 2024 RP3004MA-0519663.

Sheet Air (periodic) H2
A1: =+'Cover Page'!$B$29 -> Annual Performance Report 2024 | E1: =+'Cover Page'!$B$33 -> Newhurst Energy Recovery Facility
A3: Emissions to Air (periodically monitored)
A5: Summary of monitoring undertaken, standards used and compliance | K5: Notes:
A6: All analysis below completed by permit specified method. Where triplicate runs of the measurement is required the reported value is the average of the results. NOTE: PAHs monitoring frequency is annually as per permit Table S3.1 Completed 22nd - 24th October 2024 Periodic monitoring now biannually as required by the permit after the first year of operation. | K6: Template may require adjustment for any bespoke monitoring requirements of permit - please also check that all default ELV values, reference periods and the stated oxygen reference value match those for your plant, and edit if necessary!
A9: Results of emissions to air that are periodically monitored - oxygen reference 11%
A10: Substance | C10: Ref. Period | D10: Emission Limit Value | F10: Average | K10: User to add additional tables as necessary, depending on whether quarterly or bi-annual reporting is required for the compliance year
F11: A1 | G11: A2 | H11: A3 | I11: A4 | J11: A5
A12: Hydrogen fluoride | C12: Average of 3 consecutive measurements of at least 30 minutes each | D12: 1 mg/m3 | F12: <0.047 | G12: N/A | H12: N/A | I12: N/A | J12: N/A
A13: Cd and Tl and their compounds | C13: Average of 3 consecutive measurements of at least 30 minutes each | D13: 0.02 mg/m3 | F13: <0.0013 | G13: N/A | H13: N/A | I13: N/A | J13: N/A
A14: Hg and its compounds | C14: Average of 3 consecutive measurements of at least 30 minutes each | D14: 0.02 mg/m3 | F14: 0.009 | G14: N/A | H14: N/A | I14: N/A | J14: N/A
A15: Sb, As, Pb, Cr, Co, Cu, Mn, Ni, V and their compounds | C15: Average of 3 consecutive measurements of at least 30 minutes each | D15: 0.3 mg/m3 | F15: 0.043 | G15: N/A | H15: N/A | I15: N/A | J15: N/A
A16: Dioxins & Furans (I-TEQ) | C16: 6-8hrs | D16: 0.06 ng/m3 | F16: 0.017 | G16: N/A | H16: N/A | I16: N/A | J16: N/A
A17: PCBs (WHO-TEQ Humans / Mammals) | C17: 6-8hrs | D17: None set ng/m3 | F17: 0.002728 | G17: N/A | H17: N/A | I17: N/A | J17: N/A
A18: PCBs (WHO-TEQ Fish) | C18: 6-8hrs | D18: None set ng/m3 | F18: 0.000132 | G18: N/A | H18: N/A | I18: N/A | J18: N/A
A19: PCBs (WHO-TEQ Birds) | C19: 6-8hrs | D19: None set ng/m3 | F19: 0.005733 | G19: N/A | H19: N/A | I19: N/A | J19: N/A
A20: Dioxins & Furans (WHO-TEQ Humans / Mammals) | C20: 6-8hrs | D20: None set ng/m3 | F20: 0.017 | G20: N/A | H20: N/A | I20: N/A | J20: N/A
A21: Dioxins & Furans (WHO-TEQ Fish) | C21: 6-8hrs | D21: None set ng/m3 | F21: 0.0146 | G21: N/A | H21: N/A | I21: N/A | J21: N/A
A22: Dioxins & Furans (WHO-TEQ Birds) | C22: 6-8hrs | D22: None set ng/m3 | F22: 0.0161 | G22: N/A | H22: N/A | I22: N/A | J22: N/A
A23: Brominated Dioxins & Furans (I-TEQ) | C23: 6-8hrs | D23: None set ng/m3 | F23: 0.0018 | G23: N/A | H23: N/A | I23: N/A | J23: N/A
A24: Anthanthrene | C24: 6-8hrs | D24: None set µg/m3 | F24: N/A | G24: N/A | H24: N/A | I24: N/A | J24: N/A
A25: Benzo(a)anthracene | C25: 6-8hrs | D25: None set µg/m3 | F25: N/A | G25: N/A | H25: N/A | I25: N/A | J25: N/A
A26: Benzo(a)pyrene | C26: 6-8hrs | D26: None set µg/m3 | F26: N/A | G26: N/A | H26: N/A | I26: N/A | J26: N/A
A27: Benzo(b)fluoranthene | C27: 6-8hrs | D27: None set µg/m3 | F27: N/A | G27: N/A | H27: N/A | I27: N/A | J27: N/A
A28: Benzo(b)naptho(2,1-d) thiophene | C28: 6-8hrs | D28: None set µg/m3 | F28: N/A | G28: N/A | H28: N/A | I28: N/A | J28: N/A
A29: Benzo(c)phenanthrene | C29: 6-8hrs | D29: None set µg/m3 | F29: N/A | G29: N/A | H29: N/A | I29: N/A | J29: N/A
A30: Benzo(ghi)perylene | C30: 6-8hrs | D30: None set µg/m3 | F30: N/A | G30: N/A | H30: N/A | I30: N/A | J30: N/A
A31: Benzo(k)fluoranthene | C31: 6-8hrs | D31: None set µg/m3 | F31: N/A | G31: N/A | H31: N/A | I31: N/A | J31: N/A
A32: Cholanthrene | C32: 6-8hrs | D32: None set µg/m3 | F32: N/A | G32: N/A | H32: N/A | I32: N/A | J32: N/A
A33: Chrysene | C33: 6-8hrs | D33: None set µg/m3 | F33: N/A | G33: N/A | H33: N/A | I33: N/A | J33: N/A
A34: Cyclopenta(cd)pyrene | C34: 6-8hrs | D34: None set µg/m3 | F34: N/A | G34: N/A | H34: N/A | I34: N/A | J34: N/A
A35: Dibenzo(ai)pyrene | C35: 6-8hrs | D35: None set µg/m3 | F35: N/A | G35: N/A | H35: N/A | I35: N/A | J35: N/A
A36: Dibenzo(ah)anthracene | C36: 6-8hrs | D36: None set µg/m3 | F36: N/A | G36: N/A | H36: N/A | I36: N/A | J36: N/A
A37: Fluoranthene | C37: 6-8hrs | D37: None set µg/m3 | F37: N/A | G37: N/A | H37: N/A | I37: N/A | J37: N/A
A38: Indeno(123-cd) pyrene | C38: 6-8hrs | D38: None set µg/m3 | F38: N/A | G38: N/A | H38: N/A | I38: N/A | J38: N/A
A39: Naphthalene | C39: 6-8hrs | D39: None set µg/m3 | F39: N/A | G39: N/A | H39: N/A | I39: N/A | J39: N/A
A40: Comments :
A41: Values quoted above are WITHOUT the uncertainty subtracted. ‘how to assess compliance with an ELV within Monitoring stack emissions: maximum uncertainty values for periodic monitoring - GOV.UK (www.gov.uk) (formerly part of M2)' allows the uncertainty to be substracted before assessment against ELV.

Sheet Air (CEMS)
A1: =+'Cover Page'!$B$29 -> Annual Performance Report 2024 | I1: =+'Cover Page'!$B$33 -> Newhurst Energy Recovery Facility
A3: Emissions to Air (continuously monitored)
N4: Notes:
A5: Summary of monitoring undertaken, standards used and compliance | N5: Template may require adjustment for any bespoke monitoring requirements of permit
A6: All results below monitored by CEMs. No invalid days of data. | N6: Please check that all default ELV values match those for your plant and edit if necessary!
N7: Report to 1 decimal place
A9: Results of emissions to air that are continuously monitored (maximum and average values for each line) - oxygen reference 11%
A10: Substance | B10: Reference Period | C10: Emission Limit Value | D10: A1 | F10: A2 | H10: A3 | J10: A4 | L10: A5
D11: Max. | E11: Avg. | F11: Max. | G11: Avg. | H11: Max. | I11: Avg. | J11: Max. | K11: Avg. | L11: Max. | M11: Avg.
A12: Oxides of nitrogen | B12: Daily mean | C12: 180 mg/m3 | D12: 164.3 | E12: 159.7 | F12: N/A | G12: N/A | H12: N/A | I12: N/A | J12: N/A | K12: N/A | L12: N/A | M12: N/A
B13: ½ hourly mean | C13: 400 mg/m3 | D13: 164.3 | E13: 159.7 | F13: N/A | G13: N/A | H13: N/A | I13: N/A | J13: N/A | K13: N/A | L13: N/A | M13: N/A
A14: Particulates | B14: Daily mean | C14: 5 mg/m3 | D14: 0.3 | E14: 0 | F14: N/A | G14: N/A | H14: N/A | I14: N/A | J14: N/A | K14: N/A | L14: N/A | M14: N/A
B15: ½ hourly mean | C15: 30 mg/m3 | D15: 0.4 | E15: 0.1 | F15: N/A | G15: N/A | H15: N/A | I15: N/A | J15: N/A | K15: N/A | L15: N/A | M15: N/A
A16: Total Organic Carbon | B16: Daily mean | C16: 10 mg/m3 | D16: 0.3 | E16: 0.2 | F16: N/A | G16: N/A | H16: N/A | I16: N/A | J16: N/A | K16: N/A | L16: N/A | M16: N/A | R16: 3
B17: ½ hourly mean | C17: 20 mg/m3 | D17: 0.4 | E17: 0.2 | F17: N/A | G17: N/A | H17: N/A | I17: N/A | J17: N/A | K17: N/A | L17: N/A | M17: N/A
A18: Hydrogen chloride | B18: Daily mean | C18: 8 mg/m3 | D18: 6.9 | E18: 6.3 | F18: N/A | G18: N/A | H18: N/A | I18: N/A | J18: N/A | K18: N/A | L18: N/A | M18: N/A
B19: ½ hourly mean | C19: 60 mg/m3 | D19: 6.9 | E19: 6.3 | F19: N/A | G19: N/A | H19: N/A | I19: N/A | J19: N/A | K19: N/A | L19: N/A | M19: N/A
A20: Sulphur dioxide | B20: Daily mean | C20: 40 mg/m3 | D20: 3 | E20: 2 | F20: N/A | G20: N/A | H20: N/A | I20: N/A | J20: N/A | K20: N/A | L20: N/A | M20: N/A
B21: ½ hourly mean | C21: 200 mg/m3 | D21: 3.1 | E21: 2.1 | F21: N/A | G21: N/A | H21: N/A | I21: N/A | J21: N/A | K21: N/A | L21: N/A | M21: N/A
A22: Carbon monoxide | B22: Daily mean | C22: 50 mg/m3 | D22: 5.4 | E22: 3.7 | F22: N/A | G22: N/A | H22: N/A | I22: N/A | J22: N/A | K22: N/A | L22: N/A | M22: N/A
B23: 95%ile 10-min max | C23: 150 mg/m3 * | D23: 114.2 | E23: 27.5 | F23: N/A | G23: N/A | H23: N/A | I23: N/A | J23: N/A | K23: N/A | L23: N/A | M23: N/A
B24: 10 min mean | C24: 150 mg/m3 * | D24: 6 | E24: 3.8 | F24: N/A | G24: N/A | H24: N/A | I24: N/A | J24: N/A | K24: N/A | L24: N/A | M24: N/A
A25: Nitrous Oxide | B25: Daily mean | C25: No limit | D25: 0.2 | E25: 0.1 | F25: N/A | G25: N/A | H25: N/A | I25: N/A | J25: N/A | K25: N/A | L25: N/A | M25: N/A
B26: ½ hourly mean | C26: No limit | D26: 0.2 | E26: 0.1 | F26: N/A | G26: N/A | H26: N/A | I26: N/A | J26: N/A | K26: N/A | L26: N/A | M26: N/A
A27: Ammonia | B27: Daily mean | C27: 15 mg/m3 | D27: 0.1 | E27: 0 | F27: N/A | G27: N/A | H27: N/A | I27: N/A | J27: N/A | K27: N/A | L27: N/A | M27: N/A
A28: Comments :
A29: Note - The maximum indicated for June was 178.9 however this was only for a 3hr period before plant shutdown. The rolling 24hr period (as per permit) ending at plant off was 73.6 - duly reported to Agency.. Acknowledged in Q2 CAR form as no breach. (CAR Form Q2 2024 RP3004MA-0519663). Said 73.6mg/Nm3 used within calculation of above averages. Note - the data suggests TOC on 18th November had one half hour at 20.1 however this was not an emission. During the routine, planned, 6 monthly service of the CEMS a filter is replaced which is located at the back of the sample probes for the duty & standby gas analysers. An issue with the filter indicated an increased TOC level, the 'elevated' time period on the duty was 12:57 - 13:16. The CO report and other data showed that there were no combustion issues at the time and that the indicated elevated TOC was due to the filter not due to plant process & waste combustion. Filters have been returned to manufacturer for investigation. Issue duly reported in writing to site EA officers 19th November 2024. Maximum 1/2 hr emission in November 7.0mg/Nm3

Sheet HCl
A1: =+'Cover Page'!$B$29 -> Annual Performance Report 2024 | E1: =+'Cover Page'!$B$33 -> Newhurst Energy Recovery Facility
A3: Monitoring of Hydrogen Chloride emissions | D3: Whole Installation | G3: See Notes in Cell Q3 | J3: =+A3 -> Monitoring of Hydrogen Chloride emissions | N3: Per Combustion Line | Q3: Notes:
Q4: User to add logic to complete Whole installation, Table A5:G18. From the data in Per Combustion Line, Table J6:O79, subject to No. of lines installed
A5: =+'Cover Page'!C39 -> 2024 | B5: 1/2 Hourly Reference Periods | E5: Daily Reference Periods
A6: mg/Nm3 | B6: 1/2 hourly HCl ELV | C6: Monthly mean of half-hourly averages | D6: Highest half- hourly average | E6: Daily HCl ELV | F6: Monthly mean of daily averages | G6: Highest daily average | J6: =+A5 -> 2024 | K6: mg/Nm3 | L6: Monthly mean of half-hourly averages | M6: Highest half- hourly average | N6: Monthly mean of daily averages | O6: Highest daily average
A7: Jan | B7: 60 | C7: =L7 -> 6 | D7: =M7 -> 9.2 | E7: 8 | F7: =N7 -> 6 | G7: =O7 -> 6.3 | J7: A1 | K7: Jan | L7: 6 | M7: 9.2 | N7: 6 | O7: 6.3
A8: Feb | B8: 60 | C8: =L8 -> 6 | D8: =M8 -> 9 | E8: 8 | F8: =N8 -> 6 | G8: =O8 -> 6.4 | K8: Feb | L8: 6 | M8: 9 | N8: 6 | O8: 6.4
A9: Mar | B9: 60 | C9: 6 | D9: 12.4 | E9: 8 | F9: 6 | G9: 6.2 | K9: Mar | L9: 6 | M9: 12.4 | N9: 6 | O9: 6.2 | Q9: Whole Installation table A5:G18:
A10: Apr | B10: 60 | C10: 6 | D10: 9.6 | E10: 8 | F10: 5.9 | G10: 6.1 | K10: Apr | L10: 6 | M10: 9.6 | N10: 5.9 | O10: 6.1 | Q10: Mean: for 1/2 hourly and daily periods calculate mean of values across all operational combustion lines for the month
A11: May | B11: 60 | C11: 6 | D11: 9.5 | E11: 8 | F11: 6 | G11: 6.4 | K11: May | L11: 6 | M11: 9.5 | N11: 6 | O11: 6.4
A12: Jun | B12: 60 | C12: 5.9 | D12: 8.3 | E12: 8 | F12: 5.9 | G12: 6.1 | K12: Jun | L12: 5.9 | M12: 8.3 | N12: 5.9 | O12: 6.1
A13: Jul | B13: 60 | C13: 6.2 | D13: 9.5 | E13: 8 | F13: 6.2 | G13: 7.1 | K13: Jul | L13: 6.2 | M13: 9.5 | N13: 6.2 | O13: 7.1 | Q13: Maximum: for 1/2 hourly and daily periods use the highest value across all operational combustion lines for the month
A14: Aug | B14: 60 | C14: 6.4 | D14: 10.9 | E14: 8 | F14: 6.4 | G14: 7 | K14: Aug | L14: 6.4 | M14: 10.9 | N14: 6.4 | O14: 7
A15: Sep | B15: 60 | C15: 6.5 | D15: 10.2 | E15: 8 | F15: 6.5 | G15: 7 | K15: Sep | L15: 6.5 | M15: 10.2 | N15: 6.5 | O15: 7
A16: Oct | B16: 60 | C16: 6.5 | D16: 9.4 | E16: 8 | F16: 6.4 | G16: 6.9 | K16: Oct | L16: 6.5 | M16: 9.4 | N16: 6.4 | O16: 6.9
A17: Nov | B17: 60 | C17: 6.9 | D17: 10.2 | E17: 8 | F17: 6.9 | G17: 7 | K17: Nov | L17: 6.9 | M17: 10.2 | N17: 6.9 | O17: 7
A18: Dec | B18: 60 | C18: 6.9 | D18: 9.5 | E18: 8 | F18: 6.9 | G18: 7 | K18: Dec | L18: 6.9 | M18: 9.5 | N18: 6.9 | O18: 7
K19: Annual | L19: =AVERAGE(L7:L18) -> 6.275 | M19: =MAX(M7:M18) -> 12.4 | N19: =AVERAGE(N7:N18) -> 6.258333333 | O19: =MAX(O7:O18) -> 7.1
J21: =+A5 -> 2024 | K21: mg/Nm3 | L21: Monthly mean of half-hourly averages | M21: Highest half- hourly average | N21: Monthly mean of daily averages | O21: Highest daily average
J22: A2 | K22: Jan
K23: Feb
K24: Mar
K25: Apr
K26: May
K27: Jun
K28: Jul
K29: Aug
K30: Sep
K31: Oct
K32: Nov
K33: Dec
K34: Annual | L34: =AVERAGE(L22:L33) ->  | M34: =MAX(M22:M33) -> 0 | N34: =AVERAGE(N22:N33) ->  | O34: =MAX(O22:O33) -> 0
J36: =+A5 -> 2024 | K36: mg/Nm3 | L36: Monthly mean of half-hourly averages | M36: Highest half- hourly average | N36: Monthly mean of daily averages | O36: Highest daily average
J37: A3 | K37: Jan
K38: Feb
K39: Mar
K40: Apr
K41: May
K42: Jun
K43: Jul
K44: Aug
K45: Sep
K46: Oct
K47: Nov
A48: Comments : | K48: Dec
K49: Annual | L49: =AVERAGE(L37:L48) ->  | M49: =MAX(M37:M48) -> 0 | N49: =AVERAGE(N37:N48) ->  | O49: =MAX(O37:O48) -> 0
J51: =+A5 -> 2024 | K51: mg/Nm3 | L51: Monthly mean of half-hourly averages | M51: Highest half- hourly average | N51: Monthly mean of daily averages | O51: Highest daily average
J52: A4 | K52: Jan
K53: Feb
K54: Mar
K55: Apr
K56: May
K57: Jun
K58: Jul
K59: Aug
K60: Sep
K61: Oct
K62: Nov
K63: Dec
K64: Annual | L64: =AVERAGE(L52:L63) ->  | M64: =MAX(M52:M63) -> 0 | N64: =AVERAGE(N52:N63) ->  | O64: =MAX(O52:O63) -> 0
J66: =+A5 -> 2024 | K66: mg/Nm3 | L66: Monthly mean of half-hourly averages | M66: Highest half- hourly average | N66: Monthly mean of daily averages | O66: Highest daily average
J67: A5 | K67: Jan
K68: Feb
K69: Mar
K70: Apr
K71: May
K72: Jun
K73: Jul
K74: Aug
K75: Sep
K76: Oct
K77: Nov
K78: Dec
K79: Annual | L79: =AVERAGE(L67:L78) ->  | M79: =MAX(M67:M78) -> 0 | N79: =AVERAGE(N67:N78) ->  | O79: =MAX(O67:O78) -> 0

Sheet SO2
A1: =+'Cover Page'!$B$29 -> Annual Performance Report 2024 | E1: =+'Cover Page'!$B$33 -> Newhurst Energy Recovery Facility
A3: Monitoring of Sulphur dioxide emissions | D3: Whole Installation | G3: See Notes in Cell Q3 | J3: =+A3 -> Monitoring of Sulphur dioxide emissions | N3: Per Combustion Line | Q3: Notes:
Q4: User to add logic to complete Whole installation, Table A5:G18. From the data in Per Combustion Line, Table J6:O79, subject to No. of lines installed
A5: =+'Cover Page'!C39 -> 2024 | B5: 1/2 Hourly Reference Periods | E5: Daily Reference Periods
A6: mg/Nm3 | B6: 1/2 hourly SO2 ELV | C6: Monthly mean of half-hourly averages | D6: Highest half- hourly average | E6: Daily SO2 ELV | F6: Monthly mean of daily averages | G6: Highest daily average | J6: =+A5 -> 2024 | K6: mg/Nm3 | L6: Monthly mean of half-hourly averages | M6: Highest half- hourly average | N6: Monthly mean of daily averages | O6: Highest daily average
A7: Jan | B7: 200 | C7: =L7 -> 2 | D7: =M7 -> 8.5 | E7: 40 | F7: =N7 -> 1.9 | G7: =O7 -> 3.7 | J7: A1 | K7: Jan | L7: 2 | M7: 8.5 | N7: 1.9 | O7: 3.7
A8: Feb | B8: 200 | C8: =L8 -> 2.2 | D8: =M8 -> 9.9 | E8: 40 | F8: =N8 -> 2.2 | G8: =O8 -> 4.5 | K8: Feb | L8: 2.2 | M8: 9.9 | N8: 2.2 | O8: 4.5
A9: Mar | B9: 200 | C9: 2.6 | D9: 27 | E9: 40 | F9: 2.5 | G9: 4.1 | K9: Mar | L9: 2.6 | M9: 27 | N9: 2.5 | O9: 4.1 | Q9: Whole Installation table A5:G18:
A10: Apr | B10: 200 | C10: 3 | D10: 12.1 | E10: 40 | F10: 2.9 | G10: 4.1 | K10: Apr | L10: 3 | M10: 12.1 | N10: 2.9 | O10: 4.1 | Q10: Mean: for 1/2 hourly and daily periods calculate mean of values across all operational combustion lines for the month
A11: May | B11: 200 | C11: 1.4 | D11: 22.2 | E11: 40 | F11: 1.1 | G11: 2.8 | K11: May | L11: 1.4 | M11: 22.2 | N11: 1.1 | O11: 2.8
A12: Jun | B12: 200 | C12: 1.1 | D12: 5.9 | E12: 40 | F12: 1 | G12: 1.4 | K12: Jun | L12: 1.1 | M12: 5.9 | N12: 1 | O12: 1.4
A13: Jul | B13: 200 | C13: 1.5 | D13: 10.6 | E13: 40 | F13: 1.4 | G13: 2.5 | K13: Jul | L13: 1.5 | M13: 10.6 | N13: 1.4 | O13: 2.5 | Q13: Maximum: for 1/2 hourly and daily periods use the highest value across all operational combustion lines for the month
A14: Aug | B14: 200 | C14: 2.2 | D14: 26.9 | E14: 40 | F14: 2.2 | G14: 5.3 | K14: Aug | L14: 2.2 | M14: 26.9 | N14: 2.2 | O14: 5.3
A15: Sep | B15: 200 | C15: 1.9 | D15: 12.8 | E15: 40 | F15: 1.8 | G15: 2.4 | K15: Sep | L15: 1.9 | M15: 12.8 | N15: 1.8 | O15: 2.4
A16: Oct | B16: 200 | C16: 1.7 | D16: 12.8 | E16: 40 | F16: 1.7 | G16: 2.8 | K16: Oct | L16: 1.7 | M16: 12.8 | N16: 1.7 | O16: 2.8
A17: Nov | B17: 200 | C17: 2.6 | D17: 27.3 | E17: 40 | F17: 2.5 | G17: 3.9 | K17: Nov | L17: 2.6 | M17: 27.3 | N17: 2.5 | O17: 3.9
A18: Dec | B18: 200 | C18: 3.1 | D18: 18.8 | E18: 40 | F18: 3 | G18: 4.3 | K18: Dec | L18: 3.1 | M18: 18.8 | N18: 3 | O18: 4.3
K19: Annual | L19: =AVERAGE(L7:L18) -> 2.108333333 | M19: =MAX(M7:M18) -> 27.3 | N19: =AVERAGE(N7:N18) -> 2.016666667 | O19: =MAX(O7:O18) -> 5.3
J21: =+A5 -> 2024 | K21: mg/Nm3 | L21: Monthly mean of half-hourly averages | M21: Highest half- hourly average | N21: Monthly mean of daily averages | O21: Highest daily average
J22: A2 | K22: Jan
K23: Feb
K24: Mar
K25: Apr
K26: May
K27: Jun
K28: Jul
K29: Aug
K30: Sep
K31: Oct
K32: Nov
K33: Dec
K34: Annual | L34: =AVERAGE(L22:L33) ->  | M34: =MAX(M22:M33) -> 0 | N34: =AVERAGE(N22:N33) ->  | O34: =MAX(O22:O33) -> 0
J36: =+A5 -> 2024 | K36: mg/Nm3 | L36: Monthly mean of half-hourly averages | M36: Highest half- hourly average | N36: Monthly mean of daily averages | O36: Highest daily average
J37: A3 | K37: Jan
K38: Feb
K39: Mar
K40: Apr
K41: May
K42: Jun
K43: Jul
K44: Aug
K45: Sep
K46: Oct
K47: Nov
A48: Comments : | K48: Dec
K49: Annual | L49: =AVERAGE(L37:L48) ->  | M49: =MAX(M37:M48) -> 0 | N49: =AVERAGE(N37:N48) ->  | O49: =MAX(O37:O48) -> 0
J51: =+A5 -> 2024 | K51: mg/Nm3 | L51: Monthly mean of half-hourly averages | M51: Highest half- hourly average | N51: Monthly mean of daily averages | O51: Highest daily average
J52: A4 | K52: Jan
K53: Feb
K54: Mar
K55: Apr
K56: May
K57: Jun
K58: Jul
K59: Aug
K60: Sep
K61: Oct
K62: Nov
K63: Dec
K64: Annual | L64: =AVERAGE(L52:L63) ->  | M64: =MAX(M52:M63) -> 0 | N64: =AVERAGE(N52:N63) ->  | O64: =MAX(O52:O63) -> 0
J66: =+A5 -> 2024 | K66: mg/Nm3 | L66: Monthly mean of half-hourly averages | M66: Highest half- hourly average | N66: Monthly mean of daily averages | O66: Highest daily average
J67: A5 | K67: Jan
K68: Feb
K69: Mar
K70: Apr
K71: May
K72: Jun
K73: Jul
K74: Aug
K75: Sep
K76: Oct
K77: Nov
K78: Dec
K79: Annual | L79: =AVERAGE(L67:L78) ->  | M79: =MAX(M67:M78) -> 0 | N79: =AVERAGE(N67:N78) ->  | O79: =MAX(O67:O78) -> 0

Sheet NOx
A1: =+'Cover Page'!$B$29 -> Annual Performance Report 2024 | E1: =+'Cover Page'!$B$33 -> Newhurst Energy Recovery Facility
A3: Monitoring of Oxides of Nitrogen emissions | D3: Whole Installation | G3: See Notes in Cell Q3 | J3: =+A3 -> Monitoring of Oxides of Nitrogen emissions | N3: Per Combustion Line | Q3: Notes:
Q4: User to add logic to complete Whole installation, Table A5:G18. From the data in Per Combustion Line, Table J6:O79, subject to No. of lines installed
A5: =+'Cover Page'!C39 -> 2024 | B5: 1/2 Hourly Reference Periods | E5: Daily Reference Periods
A6: mg/Nm3 | B6: 1/2 hourly NOx ELV | C6: Monthly mean of half-hourly averages | D6: Highest half- hourly average | E6: Daily NOx ELV | F6: Monthly mean of daily averages | G6: Highest daily average | J6: =+A5 -> 2024 | K6: mg/Nm3 | L6: Monthly mean of half-hourly averages | M6: Highest half- hourly average | N6: Monthly mean of daily averages | O6: Highest daily average
A7: Jan | B7: 400 | C7: =L7 -> 163.8 | D7: =M7 -> 196 | E7: 180 | F7: =N7 -> 163.8 | G7: =O7 -> 165.8 | J7: A1 | K7: Jan | L7: 163.8 | M7: 196 | N7: 163.8 | O7: 165.8
A8: Feb | B8: 400 | C8: =L8 -> 164.2 | D8: =M8 -> 210.9 | E8: 180 | F8: =N8 -> 164.2 | G8: =O8 -> 165.8 | K8: Feb | L8: 164.2 | M8: 210.9 | N8: 164.2 | O8: 165.8
A9: Mar | B9: 400 | C9: 164.3 | D9: 194.5 | E9: 180 | F9: 164.3 | G9: 165.7 | K9: Mar | L9: 164.3 | M9: 194.5 | N9: 164.3 | O9: 165.7 | Q9: Whole Installation table A5:G18:
A10: Apr | B10: 400 | C10: 164.2 | D10: 192.9 | E10: 180 | F10: 164.1 | G10: 166.5 | K10: Apr | L10: 164.2 | M10: 192.9 | N10: 164.1 | O10: 166.5 | Q10: Mean: for 1/2 hourly and daily periods calculate mean of values across all operational combustion lines for the month
A11: May | B11: 400 | C11: 161.3 | D11: 195.7 | E11: 180 | F11: 161.3 | G11: 166.1 | K11: May | L11: 161.3 | M11: 195.7 | N11: 161.3 | O11: 166.1
A12: Jun | B12: 400 | C12: 148.6 | D12: 193.3 | E12: 180 | F12: 148.6 | G12: 165.4 | K12: Jun | L12: 148.6 | M12: 193.3 | N12: 148.6 | O12: 165.4
A13: Jul | B13: 400 | C13: 163.8 | D13: 190.5 | E13: 180 | F13: 163.8 | G13: 165.6 | K13: Jul | L13: 163.8 | M13: 190.5 | N13: 163.8 | O13: 165.6 | Q13: Maximum: for 1/2 hourly and daily periods use the highest value across all operational combustion lines for the month
A14: Aug | B14: 400 | C14: 164.1 | D14: 189.7 | E14: 180 | F14: 164.1 | G14: 165.9 | K14: Aug | L14: 164.1 | M14: 189.7 | N14: 164.1 | O14: 165.9
A15: Sep | B15: 400 | C15: 158.9 | D15: 202.6 | E15: 180 | F15: 158.9 | G15: 164.8 | K15: Sep | L15: 158.9 | M15: 202.6 | N15: 158.9 | O15: 164.8
A16: Oct | B16: 400 | C16: 159.5 | D16: 199.1 | E16: 180 | F16: 159.4 | G16: 164.5 | K16: Oct | L16: 159.5 | M16: 199.1 | N16: 159.4 | O16: 164.5
A17: Nov | B17: 400 | C17: 150.1 | D17: 188.2 | E17: 180 | F17: 150 | G17: 158.6 | K17: Nov | L17: 150.1 | M17: 188.2 | N17: 150 | O17: 158.6
A18: Dec | B18: 400 | C18: 153.7 | D18: 208.7 | E18: 180 | F18: 153.9 | G18: 165.7 | K18: Dec | L18: 153.7 | M18: 208.7 | N18: 153.9 | O18: 165.7
K19: Annual | L19: =AVERAGE(L7:L18) -> 159.7083333 | M19: =MAX(M7:M18) -> 210.9 | N19: =AVERAGE(N7:N18) -> 159.7 | O19: =MAX(O7:O18) -> 166.5
J21: =+A5 -> 2024 | K21: mg/Nm3 | L21: Monthly mean of half-hourly averages | M21: Highest half- hourly average | N21: Monthly mean of daily averages | O21: Highest daily average
J22: A2 | K22: Jan
K23: Feb
K24: Mar
K25: Apr
K26: May
K27: Jun
K28: Jul
K29: Aug
K30: Sep
K31: Oct
K32: Nov
K33: Dec
K34: Annual | L34: =AVERAGE(L22:L33) ->  | M34: =MAX(M22:M33) -> 0 | N34: =AVERAGE(N22:N33) ->  | O34: =MAX(O22:O33) -> 0
J36: =+A5 -> 2024 | K36: mg/Nm3 | L36: Monthly mean of half-hourly averages | M36: Highest half- hourly average | N36: Monthly mean of daily averages | O36: Highest daily average
J37: A3 | K37: Jan
K38: Feb
K39: Mar
K40: Apr
K41: May
K42: Jun
K43: Jul
K44: Aug
K45: Sep
K46: Oct
K47: Nov
A48: Comments : | K48: Dec
K49: Annual | L49: =AVERAGE(L37:L48) ->  | M49: =MAX(M37:M48) -> 0 | N49: =AVERAGE(N37:N48) ->  | O49: =MAX(O37:O48) -> 0
J51: =+A5 -> 2024 | K51: mg/Nm3 | L51: Monthly mean of half-hourly averages | M51: Highest half- hourly average | N51: Monthly mean of daily averages | O51: Highest daily average
J52: A4 | K52: Jan
K53: Feb
K54: Mar
K55: Apr
K56: May
K57: Jun
K58: Jul
K59: Aug
K60: Sep
K61: Oct
K62: Nov
K63: Dec
K64: Annual | L64: =AVERAGE(L52:L63) ->  | M64: =MAX(M52:M63) -> 0 | N64: =AVERAGE(N52:N63) ->  | O64: =MAX(O52:O63) -> 0
J66: =+A5 -> 2024 | K66: mg/Nm3 | L66: Monthly mean of half-hourly averages | M66: Highest half- hourly average | N66: Monthly mean of daily averages | O66: Highest daily average
J67: A5 | K67: Jan
K68: Feb
K69: Mar
K70: Apr
K71: May
K72: Jun
K73: Jul
K74: Aug
K75: Sep
K76: Oct
K77: Nov
K78: Dec
K79: Annual | L79: =AVERAGE(L67:L78) ->  | M79: =MAX(M67:M78) -> 0 | N79: =AVERAGE(N67:N78) ->  | O79: =MAX(O67:O78) -> 0

Sheet TOC
A1: =+'Cover Page'!$B$29 -> Annual Performance Report 2024 | E1: =+'Cover Page'!$B$33 -> Newhurst Energy Recovery Facility
A3: Monitoring of Total organic carbon emissions | D3: Whole Installation | G3: See Notes in Cell Q3 | J3: =+A3 -> Monitoring of Total organic carbon emissions | N3: Per Combustion Line | Q3: Notes:
Q4: User to add logic to complete Whole installation, Table A5:G18. From the data in Per Combustion Line, Table J6:O79, subject to No. of lines installed
A5: =+'Cover Page'!C39 -> 2024 | B5: 1/2 Hourly Reference Periods | E5: Daily Reference Periods
A6: mg/Nm3 | B6: 1/2 hourly TOC ELV | C6: Monthly mean of half-hourly averages | D6: Highest half- hourly average | E6: Daily TOC ELV | F6: Monthly mean of daily averages | G6: Highest daily average | J6: =+A5 -> 2024 | K6: mg/Nm3 | L6: Monthly mean of half-hourly averages | M6: Highest half- hourly average | N6: Monthly mean of daily averages | O6: Highest daily average
A7: Jan | B7: 20 | C7: =L7 -> 0.2 | D7: =M7 -> 14.6 | E7: 10 | F7: =N7 -> 0.1 | G7: =O7 -> 0.5 | J7: A1 | K7: Jan | L7: 0.2 | M7: 14.6 | N7: 0.1 | O7: 0.5
A8: Feb | B8: 20 | C8: =L8 -> 0.2 | D8: =M8 -> 10.5 | E8: 10 | F8: =N8 -> 0.1 | G8: =O8 -> 0.4 | K8: Feb | L8: 0.2 | M8: 10.5 | N8: 0.1 | O8: 0.4
A9: Mar | B9: 20 | C9: 0.1 | D9: 11.7 | E9: 10 | F9: 0.1 | G9: 0.4 | K9: Mar | L9: 0.1 | M9: 11.7 | N9: 0.1 | O9: 0.4 | Q9: Whole Installation table A5:G18:
A10: Apr | B10: 20 | C10: 0.1 | D10: 8 | E10: 10 | F10: 0 | G10: 0.2 | K10: Apr | L10: 0.1 | M10: 8 | N10: 0 | O10: 0.2 | Q10: Mean: for 1/2 hourly and daily periods calculate mean of values across all operational combustion lines for the month
A11: May | B11: 20 | C11: 0.1 | D11: 7.7 | E11: 10 | F11: 0 | G11: 0.3 | K11: May | L11: 0.1 | M11: 7.7 | N11: 0 | O11: 0.3
A12: Jun | B12: 20 | C12: 0.1 | D12: 11.7 | E12: 10 | F12: 0.1 | G12: 0.5 | K12: Jun | L12: 0.1 | M12: 11.7 | N12: 0.1 | O12: 0.5
A13: Jul | B13: 20 | C13: 0.2 | D13: 6.4 | E13: 10 | F13: 0.2 | G13: 0.4 | K13: Jul | L13: 0.2 | M13: 6.4 | N13: 0.2 | O13: 0.4 | Q13: Maximum: for 1/2 hourly and daily periods use the highest value across all operational combustion lines for the month
A14: Aug | B14: 20 | C14: 0.4 | D14: 19.8 | E14: 10 | F14: 0.3 | G14: 1.1 | K14: Aug | L14: 0.4 | M14: 19.8 | N14: 0.3 | O14: 1.1
A15: Sep | B15: 20 | C15: 0.3 | D15: 12.5 | E15: 10 | F15: 0.2 | G15: 0.8 | K15: Sep | L15: 0.3 | M15: 12.5 | N15: 0.2 | O15: 0.8
A16: Oct | B16: 20 | C16: 0.3 | D16: 9.9 | E16: 10 | F16: 0.2 | G16: 0.5 | K16: Oct | L16: 0.3 | M16: 9.9 | N16: 0.2 | O16: 0.5
A17: Nov | B17: 20 | C17: 0.3 | D17: 7 | E17: 10 | F17: 0.2 | G17: 0.7 | K17: Nov | L17: 0.3 | M17: 7.0** | N17: 0.2 | O17: 0.7
A18: Dec | B18: 20 | C18: 0.3 | D18: 9.6 | E18: 10 | F18: 0.2 | G18: 0.7 | K18: Dec | L18: 0.3 | M18: 9.6 | N18: 0.2 | O18: 0.7
K19: Annual | L19: =AVERAGE(L7:L18) -> 0.2166666667 | M19: =MAX(M7:M18) -> 19.8 | N19: =AVERAGE(N7:N18) -> 0.1416666667 | O19: =MAX(O7:O18) -> 1.1
J21: =+A5 -> 2024 | K21: mg/Nm3 | L21: Monthly mean of half-hourly averages | M21: Highest half- hourly average | N21: Monthly mean of daily averages | O21: Highest daily average
J22: A2 | K22: Jan
K23: Feb
K24: Mar
K25: Apr
K26: May
K27: Jun
K28: Jul
K29: Aug
K30: Sep
K31: Oct
K32: Nov
K33: Dec
K34: Annual | L34: =AVERAGE(L22:L33) ->  | M34: =MAX(M22:M33) -> 0 | N34: =AVERAGE(N22:N33) ->  | O34: =MAX(O22:O33) -> 0
J36: =+A5 -> 2024 | K36: mg/Nm3 | L36: Monthly mean of half-hourly averages | M36: Highest half- hourly average | N36: Monthly mean of daily averages | O36: Highest daily average
J37: A3 | K37: Jan
K38: Feb
K39: Mar
K40: Apr
K41: May
K42: Jun
K43: Jul
K44: Aug
K45: Sep
K46: Oct
K47: Nov
A48: Comments : | K48: Dec
A49: Note ** - the data suggests TOC on 18th November had one half hour at 20.1 however this was not an emission. During the routine, planned, 6 monthly service of the CEMS a filter is replaced which is located at the back of the sample probes for the duty & standby gas analysers. An issue with the filter indicated an increased TOC level, the 'elevated' time period on the duty was 12:57 - 13:16. The CO report and other data showed that there were no combustion issues at the time and that the indicated elevated TOC was due to the filter not due to plant process & waste combustion. Filters have been returned to manufacturer for investigation. Issue duly reported in writing to site EA officers 19th November 2024. Maximum 1/2 hr emission in November 7.0mg/Nm3 | K49: Annual | L49: =AVERAGE(L37:L48) ->  | M49: =MAX(M37:M48) -> 0 | N49: =AVERAGE(N37:N48) ->  | O49: =MAX(O37:O48) -> 0
J51: =+A5 -> 2024 | K51: mg/Nm3 | L51: Monthly mean of half-hourly averages | M51: Highest half- hourly average | N51: Monthly mean of daily averages | O51: Highest daily average
J52: A4 | K52: Jan
K53: Feb
K54: Mar
K55: Apr
K56: May
K57: Jun
K58: Jul
K59: Aug
K60: Sep
K61: Oct
K62: Nov
K63: Dec
K64: Annual | L64: =AVERAGE(L52:L63) ->  | M64: =MAX(M52:M63) -> 0 | N64: =AVERAGE(N52:N63) ->  | O64: =MAX(O52:O63) -> 0
J66: =+A5 -> 2024 | K66: mg/Nm3 | L66: Monthly mean of half-hourly averages | M66: Highest half- hourly average | N66: Monthly mean of daily averages | O66: Highest daily average
J67: A5 | K67: Jan
K68: Feb
K69: Mar
K70: Apr
K71: May
K72: Jun
K73: Jul
K74: Aug
K75: Sep
K76: Oct
K77: Nov
K78: Dec
K79: Annual | L79: =AVERAGE(L67:L78) ->  | M79: =MAX(M67:M78) -> 0 | N79: =AVERAGE(N67:N78) ->  | O79: =MAX(O67:O78) -> 0

Sheet Particulates
A1: =+'Cover Page'!$B$29 -> Annual Performance Report 2024 | E1: =+'Cover Page'!$B$33 -> Newhurst Energy Recovery Facility
A3: Monitoring of Particulate matter emissions | D3: Whole Installation | G3: See Notes in Cell Q3 | J3: =+A3 -> Monitoring of Particulate matter emissions | N3: Per Combustion Line | Q3: Notes:
A5: =+'Cover Page'!C39 -> 2024 | B5: 1/2 Hourly Reference Periods | E5: Daily Reference Periods | Q5: User to add logic to complete Whole installation, Table A5:G18. From the data in Per Combustion Line, Table J6:O79, subject to No. of lines installed
A6: mg/Nm3 | B6: 1/2 hourly PM ELV | C6: Monthly mean of half-hourly averages | D6: Highest half- hourly average | E6: Daily PM ELV | F6: Monthly mean of daily averages | G6: Highest daily average | J6: =+A5 -> 2024 | K6: mg/Nm3 | L6: Monthly mean of half-hourly averages | M6: Highest half- hourly average | N6: Monthly mean of daily averages | O6: Highest daily average
A7: Jan | B7: 30 | C7: =L7 -> 0.1 | D7: =M7 -> 0.1 | E7: 5 | F7: =N7 -> 0 | G7: =O7 -> 0.1 | J7: A1 | K7: Jan | L7: 0.1 | M7: 0.1 | N7: 0 | O7: 0.1
A8: Feb | B8: 30 | C8: =L8 -> 0.1 | D8: =M8 -> 1.1 | E8: 5 | F8: =N8 -> 0 | G8: =O8 -> 0.1 | K8: Feb | L8: 0.1 | M8: 1.1 | N8: 0 | O8: 0.1
A9: Mar | B9: 30 | C9: 0.1 | D9: 0.2 | E9: 5 | F9: 0 | G9: 0.1 | K9: Mar | L9: 0.1 | M9: 0.2 | N9: 0 | O9: 0.1
A10: Apr | B10: 30 | C10: 0.1 | D10: 0.1 | E10: 5 | F10: 0 | G10: 0.1 | K10: Apr | L10: 0.1 | M10: 0.1 | N10: 0 | O10: 0.1 | Q10: Whole Installation table A5:G18:
A11: May | B11: 30 | C11: 0.2 | D11: 2.3 | E11: 5 | F11: 0.1 | G11: 1.4 | K11: May | L11: 0.2 | M11: 2.3 | N11: 0.1 | O11: 1.4 | Q11: Mean: for 1/2 hourly and daily periods calculate mean of values across all operational combustion lines for the month
A12: Jun | B12: 30 | C12: 0.4 | D12: 1.8 | E12: 5 | F12: 0.3 | G12: 1.2 | K12: Jun | L12: 0.4 | M12: 1.8 | N12: 0.3 | O12: 1.2
A13: Jul | B13: 30 | C13: 0.1 | D13: 0.1 | E13: 5 | F13: 0 | G13: 0.1 | K13: Jul | L13: 0.1 | M13: 0.1 | N13: 0 | O13: 0.1
A14: Aug | B14: 30 | C14: 0.1 | D14: 0.1 | E14: 5 | F14: 0 | G14: 0.1 | K14: Aug | L14: 0.1 | M14: 0.1 | N14: 0 | O14: 0.1 | Q14: Maximum: for 1/2 hourly and daily periods use the highest value across all operational combustion lines for the month
A15: Sep | B15: 30 | C15: 0.1 | D15: 0.1 | E15: 5 | F15: 0 | G15: 0.1 | K15: Sep | L15: 0.1 | M15: 0.1 | N15: 0 | O15: 0.1
A16: Oct | B16: 30 | C16: 0.1 | D16: 0.1 | E16: 5 | F16: 0 | G16: 0.1 | K16: Oct | L16: 0.1 | M16: 0.1 | N16: 0 | O16: 0.1
A17: Nov | B17: 30 | C17: 0.1 | D17: 0.1 | E17: 5 | F17: 0 | G17: 0.1 | K17: Nov | L17: 0.1 | M17: 0.1 | N17: 0 | O17: 0.1
A18: Dec | B18: 30 | C18: 0.1 | D18: 0.1 | E18: 5 | F18: 0 | G18: 0.1 | K18: Dec | L18: 0.1 | M18: 0.1 | N18: 0 | O18: 0.1
K19: Annual | L19: =AVERAGE(L7:L18) -> 0.1333333333 | M19: =MAX(M7:M18) -> 2.3 | N19: =AVERAGE(N7:N18) -> 0.03333333333 | O19: =MAX(O7:O18) -> 1.4
J21: =+A5 -> 2024 | K21: mg/Nm3 | L21: Monthly mean of half-hourly averages | M21: Highest half- hourly average | N21: Monthly mean of daily averages | O21: Highest daily average
J22: A2 | K22: Jan
K23: Feb
K24: Mar
K25: Apr
K26: May
K27: Jun
K28: Jul
K29: Aug
K30: Sep
K31: Oct
K32: Nov
K33: Dec
K34: Annual | L34: =AVERAGE(L22:L33) ->  | M34: =MAX(M22:M33) -> 0 | N34: =AVERAGE(N22:N33) ->  | O34: =MAX(O22:O33) -> 0
J36: =+A5 -> 2024 | K36: mg/Nm3 | L36: Monthly mean of half-hourly averages | M36: Highest half- hourly average | N36: Monthly mean of daily averages | O36: Highest daily average
J37: A3 | K37: Jan
K38: Feb
K39: Mar
K40: Apr
K41: May
K42: Jun
K43: Jul
K44: Aug
K45: Sep
K46: Oct
K47: Nov
A48: Comments : | K48: Dec
K49: Annual | L49: =AVERAGE(L37:L48) ->  | M49: =MAX(M37:M48) -> 0 | N49: =AVERAGE(N37:N48) ->  | O49: =MAX(O37:O48) -> 0
J51: =+A5 -> 2024 | K51: mg/Nm3 | L51: Monthly mean of half-hourly averages | M51: Highest half- hourly average | N51: Monthly mean of daily averages | O51: Highest daily average
J52: A4 | K52: Jan
K53: Feb
K54: Mar
K55: Apr
K56: May
K57: Jun
K58: Jul
K59: Aug
K60: Sep
K61: Oct
K62: Nov
K63: Dec
K64: Annual | L64: =AVERAGE(L52:L63) ->  | M64: =MAX(M52:M63) -> 0 | N64: =AVERAGE(N52:N63) ->  | O64: =MAX(O52:O63) -> 0
J66: =+A5 -> 2024 | K66: mg/Nm3 | L66: Monthly mean of half-hourly averages | M66: Highest half- hourly average | N66: Monthly mean of daily averages | O66: Highest daily average
J67: A5 | K67: Jan
K68: Feb
K69: Mar
K70: Apr
K71: May
K72: Jun
K73: Jul
K74: Aug
K75: Sep
K76: Oct
K77: Nov
K78: Dec
K79: Annual | L79: =AVERAGE(L67:L78) ->  | M79: =MAX(M67:M78) -> 0 | N79: =AVERAGE(N67:N78) ->  | O79: =MAX(O67:O78) -> 0

Sheet CO 0.5 hourly
A1: =+'Cover Page'!$B$29 -> Annual Performance Report 2024 | E1: =+'Cover Page'!$B$33 -> Newhurst Energy Recovery Facility
A3: Monitoring of Carbon Monoxide (half hourly) | D3: Whole Installation | G3: See Notes in Cell Q3 | J3: =+A3 -> Monitoring of Carbon Monoxide (half hourly) | N3: Per Combustion Line | Q3: Notes:
A5: Please complete this tab for your plant if you have 1/2 hourly CO ELVs; otherwise, leave it blank and complete the CO 95% 10 min tab
Q7: User to add logic to complete Whole installation, Table A5:G18. From the data in Per Combustion Line, Table J6:O79, subject to No. of lines installed
A8: =+'Cover Page'!C39 -> 2024 | B8: 1/2 Hourly Reference Periods | E8: Daily Reference Periods
A9: mg/Nm3 | B9: 1/2 hourly CO ELV | C9: Monthly mean of half-hourly averages | D9: Highest half- hourly average | E9: Daily CO ELV | F9: Monthly mean of daily averages | G9: Highest daily average | J9: =+A8 -> 2024 | K9: mg/Nm3 | L9: Monthly mean of half-hourly averages | M9: Highest half- hourly average | N9: Monthly mean of daily averages | O9: Highest daily average
A10: Jan | B10: 100 | E10: 50 | J10: A1 | K10: Jan
A11: Feb | B11: =+B10 -> 100 | E11: =+E10 -> 50 | K11: Feb
A12: Mar | B12: =+B11 -> 100 | E12: =+E11 -> 50 | K12: Mar | Q12: Whole Installation table A5:G18:
A13: Apr | B13: 100 | E13: 50 | K13: Apr | Q13: Mean: for 1/2 hourly and daily periods calculate mean of values across all operational combustion lines for the month
A14: May | B14: 100 | E14: 50 | K14: May
A15: Jun | B15: 100 | E15: 50 | K15: Jun
A16: Jul | B16: 100 | E16: 50 | K16: Jul | Q16: Maximum: for 1/2 hourly and daily periods use the highest value across all operational combustion lines for the month
A17: Aug | B17: 100 | E17: 50 | K17: Aug
A18: Sep | B18: 100 | E18: 50 | K18: Sep
A19: Oct | B19: 100 | E19: 50 | K19: Oct
A20: Nov | B20: 100 | E20: 50 | K20: Nov
A21: Dec | B21: 100 | E21: 50 | K21: Dec
K22: Annual | L22: =AVERAGE(L10:L21) ->  | M22: =MAX(M10:M21) -> 0 | N22: =AVERAGE(N10:N21) ->  | O22: =MAX(O10:O21) -> 0
J24: =+A8 -> 2024 | K24: mg/Nm3 | L24: Monthly mean of half-hourly averages | M24: Highest half- hourly average | N24: Monthly mean of daily averages | O24: Highest daily average
J25: A2 | K25: Jan
K26: Feb
K27: Mar
K28: Apr
K29: May
K30: Jun
K31: Jul
K32: Aug
K33: Sep
K34: Oct
K35: Nov
K36: Dec
K37: Annual | L37: =AVERAGE(L25:L36) ->  | M37: =MAX(M25:M36) -> 0 | N37: =AVERAGE(N25:N36) ->  | O37: =MAX(O25:O36) -> 0
J39: =+A8 -> 2024 | K39: mg/Nm3 | L39: Monthly mean of half-hourly averages | M39: Highest half- hourly average | N39: Monthly mean of daily averages | O39: Highest daily average
J40: A3 | K40: Jan
K41: Feb
K42: Mar
K43: Apr
K44: May
K45: Jun
K46: Jul
K47: Aug
K48: Sep
K49: Oct
K50: Nov
A51: Comments : | K51: Dec
A52: 10 min CO averages | K52: Annual | L52: =AVERAGE(L40:L51) ->  | M52: =MAX(M40:M51) -> 0 | N52: =AVERAGE(N40:N51) ->  | O52: =MAX(O40:O51) -> 0
J54: =+A8 -> 2024 | K54: mg/Nm3 | L54: Monthly mean of half-hourly averages | M54: Highest half- hourly average | N54: Monthly mean of daily averages | O54: Highest daily average
J55: A4 | K55: Jan
K56: Feb
K57: Mar
K58: Apr
K59: May
K60: Jun
K61: Jul
K62: Aug
K63: Sep
K64: Oct
K65: Nov
K66: Dec
K67: Annual | L67: =AVERAGE(L55:L66) ->  | M67: =MAX(M55:M66) -> 0 | N67: =AVERAGE(N55:N66) ->  | O67: =MAX(O55:O66) -> 0
J69: =+A8 -> 2024 | K69: mg/Nm3 | L69: Monthly mean of half-hourly averages | M69: Highest half- hourly average | N69: Monthly mean of daily averages | O69: Highest daily average
J70: A5 | K70: Jan
K71: Feb
K72: Mar
K73: Apr
K74: May
K75: Jun
K76: Jul
K77: Aug
K78: Sep
K79: Oct
K80: Nov
K81: Dec
K82: Annual | L82: =AVERAGE(L70:L81) ->  | M82: =MAX(M70:M81) -> 0 | N82: =AVERAGE(N70:N81) ->  | O82: =MAX(O70:O81) -> 0

Sheet CO 95% 10 min
A1: =+'Cover Page'!$B$29 -> Annual Performance Report 2024 | E1: =+'Cover Page'!$B$33 -> Newhurst Energy Recovery Facility
A3: Monitoring of Carbon Monoxide (10-minute avg) | E3: Whole Installation | H3: See Notes in Cell S3 | J3: =+A3 -> Monitoring of Carbon Monoxide (10-minute avg) | O3: Per Combustion Line | Q3: Notes: | S3: Notes:
A5: Please complete this tab for your plant if you have 10-minute average CO ELVs; otherwise, leave it blank and complete the CO 0.5 hourly tab
S7: User to add logic to complete Whole installation, Table A5:H18. From the data in Per Combustion Line, Table K6:Q79, subject to No. of lines installed
A8: =+'Cover Page'!C39 -> 2024 | B8: 10-minute Reference Periods | F8: Daily Reference Periods
A9: mg/Nm3 | B9: 95%ile 10-min avg CO ELV | C9: Highest daily 95%ile 10-min average | D9: Monthly mean of 10-min averages | E9: Highest 10-min average | F9: Daily CO ELV | G9: Monthly mean of daily averages | H9: Highest daily average | K9: =+A8 -> 2024 | L9: mg/Nm3 | M9: Highest daily 95%ile 10-min average | N9: Monthly mean of 10-min averages | O9: Highest 10-min average | P9: Monthly mean of daily averages | Q9: Highest daily average
A10: Jan | B10: 150 | C10: =M10 -> 4.3 | D10: =N10 -> 2 | E10: =O10 -> 453 | F10: 50 | G10: =P10 -> 1.9 | H10: =Q10 -> 4.8 | K10: A1 | L10: Jan | M10: 4.3 | N10: 2 | O10: 453 | P10: 1.9 | Q10: 4.8
A11: Feb | B11: =+B10 -> 150 | C11: =M11 -> 5 | D11: =N11 -> 2 | E11: =O11 -> 393.6 | F11: =+F10 -> 50 | G11: =P11 -> 2 | H11: =Q11 -> 7.1 | L11: Feb | M11: 5 | N11: 2 | O11: 393.6 | P11: 2 | Q11: 7.1
A12: Mar | B12: =+B11 -> 150 | C12: 8.1 | D12: 2.5 | E12: 446.4 | F12: =+F11 -> 50 | G12: 2.5 | H12: 6.4 | L12: Mar | M12: 8.1 | N12: 2.5 | O12: 446.4 | P12: 2.5 | Q12: 6.4 | S12: Whole Installation table A5:H18:
A13: Apr | B13: 150 | C13: 13.1 | D13: 3.1 | E13: 617 | F13: 50 | G13: 3 | H13: 5.6 | L13: Apr | M13: 13.1 | N13: 3.1 | O13: 617 | P13: 3 | Q13: 5.6 | S13: Mean: for 10-min and daily periods use average of all operational combustion lines.
A14: May | B14: 150 | C14: 10.7 | D14: 3 | E14: 655.2 | F14: 50 | G14: 3 | H14: 9.6 | L14: May | M14: 10.7 | N14: 3 | O14: 655.2 | P14: 3 | Q14: 9.6
A15: Jun | B15: 150 | C15: 73.6 | D15: 4.1 | E15: 1061.2 | F15: 50 | G15: 3.8 | H15: 14.1 | L15: Jun | M15: 73.6 | N15: 4.1 | O15: 1061.2 | P15: 3.8 | Q15: 14.1
A16: Jul | B16: 150 | C16: 6.7 | D16: 2.5 | E16: 795.5 | F16: 50 | G16: 2.5 | H16: 7 | L16: Jul | M16: 6.7 | N16: 2.5 | O16: 795.5 | P16: 2.5 | Q16: 7 | S16: Maximum: for 10-min and daily periods use the highest of all operational combustion lines in any month.
A17: Aug | B17: 150 | C17: 11.2 | D17: 4.5 | E17: 2098.5 | F17: 50 | G17: 4.6 | H17: 30.6 | L17: Aug | M17: 11.2 | N17: 4.5 | O17: 2098.5 | P17: 4.6 | Q17: 30.6
A18: Sep | B18: 150 | C18: 35.1 | D18: 6 | E18: 1618.2 | F18: 50 | G18: 5.4 | H18: 20.2 | L18: Sep | M18: 35.1 | N18: 6 | O18: 1618.2 | P18: 5.4 | Q18: 20.2
A19: Oct | B19: 150 | C19: 25.5 | D19: 5.3 | E19: 598.6 | F19: 50 | G19: 5.3 | H19: 10.6 | L19: Oct | M19: 25.5 | N19: 5.3 | O19: 598.6 | P19: 5.3 | Q19: 10.6
A20: Nov | B20: 150 | C20: 32 | D20: 5.2 | E20: 951.2 | F20: 50 | G20: 5.1 | H20: 13.4 | L20: Nov | M20: 32 | N20: 5.2 | O20: 951.2 | P20: 5.1 | Q20: 13.4
A21: Dec | B21: 150 | C21: 114.2 | D21: 5.1 | E21: 838.8 | F21: 50 | G21: 4.9 | H21: 21 | L21: Dec | M21: 114.2 | N21: 5.1 | O21: 838.8 | P21: 4.9 | Q21: 21
L22: Annual | M22: =AVERAGE(M10:M21) -> 28.29166667 | O22: =MAX(O10:O21) -> 2098.5 | P22: =AVERAGE(P10:P21) -> 3.666666667 | Q22: =MAX(Q10:Q21) -> 30.6
K24: =+A8 -> 2024 | L24: mg/Nm3 | M24: Highest daily 95%ile 10-min average | N24: Monthly mean of 10-min averages | O24: Highest 10-min average | P24: Monthly mean of daily averages | Q24: Highest daily average
K25: A2 | L25: Jan
L26: Feb
L27: Mar
L28: Apr
L29: May
L30: Jun
L31: Jul
L32: Aug
L33: Sep
L34: Oct
L35: Nov
L36: Dec
L37: Annual | M37: =AVERAGE(M25:M36) ->  | O37: =MAX(O25:O36) -> 0 | P37: =AVERAGE(P25:P36) ->  | Q37: =MAX(Q25:Q36) -> 0
K39: =+A8 -> 2024 | L39: mg/Nm3 | M39: Highest daily 95%ile 10-min average | N39: Monthly mean of 10-min averages | O39: Highest 10-min average | P39: Monthly mean of daily averages | Q39: Highest daily average
K40: A3 | L40: Jan
L41: Feb
L42: Mar
L43: Apr
L44: May
L45: Jun
L46: Jul
L47: Aug
L48: Sep
L49: Oct
L50: Nov
A51: Comments : | L51: Dec
A52: Environment Agency explanatory note: The 10-minute average ELV is based on the “95th percentile”. In this case this means that 95% of the 10 minute averages in the relevant 24-hour period (i.e. 137) must be below 150 mg/Nm3, and 5% (i.e. 7) are allowed to be any value above 150 mg/Nm3. Whilst we expect operators to minimise CO emissions at all times, it is perfectly acceptable for the value of the maximum 10-minute average to be above 150 mg/Nm3, provided the 95th percentile ELV has been met for that period. | L52: Annual | M52: =AVERAGE(M40:M51) ->  | O52: =MAX(O40:O51) -> 0 | P52: =AVERAGE(P40:P51) ->  | Q52: =MAX(Q40:Q51) -> 0
K54: =+A8 -> 2024 | L54: mg/Nm3 | M54: Highest daily 95%ile 10-min average | N54: Monthly mean of 10-min averages | O54: Highest 10-min average | P54: Monthly mean of daily averages | Q54: Highest daily average
A55: The maximum indicated for June was 178.9 however this was only for a 3hr period before plant shutdown. The rolling 24hr period (as per permit) ending at plant off was 73.6150 mg/Nm3 - duly reported to Agency.. Acknowledged in Q2 CAR form as no breach. (CAR Form Q2 2024 RP3004MA-0519663) | K55: A4 | L55: Jan
L56: Feb
L57: Mar
L58: Apr
L59: May
L60: Jun
L61: Jul
L62: Aug
L63: Sep
L64: Oct
L65: Nov
L66: Dec
L67: Annual | M67: =AVERAGE(M55:M66) ->  | O67: =MAX(O55:O66) -> 0 | P67: =AVERAGE(P55:P66) ->  | Q67: =MAX(Q55:Q66) -> 0
K69: =+A8 -> 2024 | L69: mg/Nm3 | M69: 95%ile 10-min avg maximum | N69: Monthly CO 10-min avg mean | O69: 10-min avg maximum | P69: Monthly daily mean | Q69: Monthly daily maximum
K70: A5 | L70: Jan
L71: Feb
L72: Mar
L73: Apr
L74: May
L75: Jun
L76: Jul
L77: Aug
L78: Sep
L79: Oct
L80: Nov
L81: Dec
L82: Annual | M82: =AVERAGE(M70:M81) ->  | O82: =MAX(O70:O81) -> 0 | P82: =AVERAGE(P70:P81) ->  | Q82: =MAX(Q70:Q81) -> 0

Sheet NH3
A1: =+'Cover Page'!$B$29 -> Annual Performance Report 2024 | E1: =+'Cover Page'!$B$33 -> Newhurst Energy Recovery Facility
A3: Monitoring of Ammnonia emissions | D3: Whole Installation | G3: See Notes in Cell Q3 | J3: =+A3 -> Monitoring of Ammnonia emissions | N3: Per Combustion Line | Q3: Notes:
Q4: User to add logic to complete Whole installation, Table A5:G18. From the data in Per Combustion Line, Table J6:O79, subject to No. of lines installed
A5: =+'Cover Page'!C39 -> 2024 | B5: 1/2 Hourly Reference Periods | E5: Daily Reference Periods
A6: mg/Nm3 | B6: 1/2 hourly NH3 ELV | C6: Monthly mean of half-hourly averages | D6: Highest half- hourly average | E6: Daily NH3 ELV | F6: Monthly mean of daily averages | G6: Highest daily average | J6: =+A5 -> 2024 | K6: mg/Nm3 | L6: Monthly mean of half-hourly averages | M6: Highest half- hourly average | N6: Monthly mean of daily averages | O6: Highest daily average
A7: Jan | B7: None | C7: =L7 -> 0 | D7: =M7 -> 0.3 | E7: 15 | F7: =N7 -> 0 | G7: =O7 -> 0 | J7: A1 | K7: Jan | L7: 0 | M7: 0.3 | N7: 0 | O7: 0
A8: Feb | B8: =+B7 -> None | C8: =L8 -> 0 | D8: =M8 -> 0.5 | E8: 15 | F8: =N8 -> 0 | G8: =O8 -> 0.1 | K8: Feb | L8: 0 | M8: 0.5 | N8: 0 | O8: 0.1
A9: Mar | B9: =+B8 -> None | C9: 0 | D9: 0.3 | E9: 15 | F9: 0 | G9: 0 | K9: Mar | L9: 0 | M9: 0.3 | N9: 0 | O9: 0 | Q9: Whole Installation table A5:G18:
A10: Apr | B10: None | C10: 0 | D10: 0.4 | E10: 15 | F10: 0 | G10: 0.1 | K10: Apr | L10: 0 | M10: 0.4 | N10: 0 | O10: 0.1 | Q10: Mean: for 1/2 hourly and daily periods calculate mean of values across all operational combustion lines for the month
A11: May | B11: None | C11: 0.1 | D11: 1.4 | E11: 15 | F11: 0 | G11: 0.3 | K11: May | L11: 0.1 | M11: 1.4 | N11: 0 | O11: 0.3
A12: Jun | B12: None | C12: 0.1 | D12: 2.2 | E12: 15 | F12: 0.1 | G12: 0.6 | K12: Jun | L12: 0.1 | M12: 2.2 | N12: 0.1 | O12: 0.6
A13: Jul | B13: None | C13: 0 | D13: 0.4 | E13: 15 | F13: 0 | G13: 0 | K13: Jul | L13: 0 | M13: 0.4 | N13: 0 | O13: 0 | Q13: Maximum: for 1/2 hourly and daily periods use the highest value across all operational combustion lines for the month
A14: Aug | B14: None | C14: 0 | D14: 0.7 | E14: 15 | F14: 0 | G14: 0.1 | K14: Aug | L14: 0 | M14: 0.7 | N14: 0 | O14: 0.1
A15: Sep | B15: None | C15: 0 | D15: 0.9 | E15: 15 | F15: 0 | G15: 0.2 | K15: Sep | L15: 0 | M15: 0.9 | N15: 0 | O15: 0.2
A16: Oct | B16: None | C16: 0 | D16: 0.6 | E16: 15 | F16: 0 | G16: 0.1 | K16: Oct | L16: 0 | M16: 0.6 | N16: 0 | O16: 0.1
A17: Nov | B17: None | C17: 0 | D17: 0.4 | E17: 15 | F17: 0 | G17: 0 | K17: Nov | L17: 0 | M17: 0.4 | N17: 0 | O17: 0
A18: Dec | B18: None | C18: 0 | D18: 0.4 | E18: 15 | F18: 0 | G18: 0 | K18: Dec | L18: 0 | M18: 0.4 | N18: 0 | O18: 0
K19: Annual | L19: =AVERAGE(L7:L18) -> 0.01666666667 | M19: =MAX(M7:M18) -> 2.2 | N19: =AVERAGE(N7:N18) -> 0.008333333333 | O19: =MAX(O7:O18) -> 0.6
J21: =+A5 -> 2024 | K21: mg/Nm3 | L21: Monthly mean of half-hourly averages | M21: Highest half- hourly average | N21: Monthly mean of daily averages | O21: Highest daily average
J22: A2 | K22: Jan
K23: Feb
K24: Mar
K25: Apr
K26: May
K27: Jun
K28: Jul
K29: Aug
K30: Sep
K31: Oct
K32: Nov
K33: Dec
K34: Annual | L34: =AVERAGE(L22:L33) ->  | M34: =MAX(M22:M33) -> 0 | N34: =AVERAGE(N22:N33) ->  | O34: =MAX(O22:O33) -> 0
J36: =+A5 -> 2024 | K36: mg/Nm3 | L36: Monthly mean of half-hourly averages | M36: Highest half- hourly average | N36: Monthly mean of daily averages | O36: Highest daily average
J37: A3 | K37: Jan
K38: Feb
K39: Mar
K40: Apr
K41: May
K42: Jun
K43: Jul
K44: Aug
K45: Sep
K46: Oct
K47: Nov
A48: Comments : | K48: Dec
A49: An indicated ELV value of zero in the table above means that no ammonia limit is/was set in the permit. | K49: Annual | L49: =AVERAGE(L37:L48) ->  | M49: =MAX(M37:M48) -> 0 | N49: =AVERAGE(N37:N48) ->  | O49: =MAX(O37:O48) -> 0
J51: =+A5 -> 2024 | K51: mg/Nm3 | L51: Monthly mean of half-hourly averages | M51: Highest half- hourly average | N51: Monthly mean of daily averages | O51: Highest daily average
J52: A4 | K52: Jan
K53: Feb
K54: Mar
K55: Apr
K56: May
K57: Jun
K58: Jul
K59: Aug
K60: Sep
K61: Oct
K62: Nov
K63: Dec
K64: Annual | L64: =AVERAGE(L52:L63) ->  | M64: =MAX(M52:M63) -> 0 | N64: =AVERAGE(N52:N63) ->  | O64: =MAX(O52:O63) -> 0
J66: =+A5 -> 2024 | K66: mg/Nm3 | L66: Monthly mean of half-hourly averages | M66: Highest half- hourly average | N66: Monthly mean of daily averages | O66: Highest daily average
J67: A5 | K67: Jan
K68: Feb
K69: Mar
K70: Apr
K71: May
K72: Jun
K73: Jul
K74: Aug
K75: Sep
K76: Oct
K77: Nov
K78: Dec
K79: Annual | L79: =AVERAGE(L67:L78) ->  | M79: =MAX(M67:M78) -> 0 | N79: =AVERAGE(N67:N78) ->  | O79: =MAX(O67:O78) -> 0

Sheet Template changes log
A1: Log of changes to template (Environment Agency use only)
A3: Date | B3: Description of change | C3: New version number and date
A4: 2024-01-16 | B4: Air (periodic) tab: corrected default O2 reference from 6 to 11% | C4: Version 23.5a (for incinerators) - 16/01/2024
A5: 2024-09-23 | B5: Air (periodic) tab: corrected symbol for Thallium to Tl
A6: 2024-09-23 | B6: Air (periodic) tab: removed last year's references to different emission limit values applying from 03/12/23 and updated all relevant ELVs
A7: 2024-09-23 | B7: Tabs for continuously monitored pollutants (HCl, SO2 etc.): changed terminology in table headings to improve clarity
A8: 2024-09-23 | B8: Tabs for continuously monitored pollutants (HCl, SO2 etc.): removed last year's references to different emission limit values applying from 03/12/23 and updated all relevant ELVs
A9: 2024-09-23 | B9: Perf 1 tab: updated formula for water usage to report m3 rather than litres and corrected error with formula copying operator name
A10: 2024-09-23 | B10: Operational Summary tab: table added on start-ups and shut-downs
A11: 2024-09-23 | B11: Operational Summary tab: table added on dioxins and mercury protocols
A12: 2024-09-23 | B12: Operational Summary tab: table added on AST, QAL 2 and calibration functions
A13: 2024-09-23 | B13: CO2 N2O tab: various changes made to notes to reflect the fact that most plants should now have calibrated CEMS and flow meters + some have C14 samplers and more up to date industry data | C13: Version 24a (for incinerators) - 23/09/24
A14: 2024-11-08 | B14: CO2 N2O tab: Changed the N2O CO2 equivalence factor from 298 to 265 in line with recently updated government greenhouse gas figures: https://www.gov.uk/government/publications/greenhouse-gas-reporting-conversion-factors-2024
A15: 2024-11-08 | B15: CO2 N2O tab: Added an additional requirement for municipal EfW plants to state the yearly average biogenic percentage of the waste by mass, and reference to a document which sets out a methodology for calculating NCV of waste from the results of C14 sampling.
A16: 2024-11-08 | B16: Permit Compliance tab: Two additional columns added + explanatory notes to the table entitled "Summary of non-compliances under the permit" to allow CCS scores to be stated where relevant.
A17: 2024-11-08 | B17: Residue Quality tab: Note added explaining application of TOC and LOI limits and asking operators to report both metrics where measured. | C17: Version 24.1a (for incinerators) - 08/11/24
A18: 2024-11-27 | B18: Operational Summary tab: Tables on mercury & dioxins protocols and ASTs removed (covered instead by new tables added to updated Air 9 periodic monitoring form) | C18: Version 24.2a (for incinerators) - 27/11/24
